{"text_format":"1","workbook":"xlsx","n_sheets":9,"sheets":["Auto y Rec por 3ros","Prácticas colectivas","Proyecto colectivo","Formas de org y rec","Territorio (exclusivo Com CyB)","Dotaciones","Infraestructura","Control de cambios","Hoja8"],"not_rendered":{"charts":0,"images":1,"macros":1,"external_links":0,"defined_names":0,"comments":0,"pivot_tables":0},"unopened":[],"bounds":{"document_bytes":16777216,"sheet_cells":100000,"rows_first":2000,"rows_last":500,"rows_between":2000,"halvings":0,"cell_chars":16384,"cell_head_chars":4096},"cells_cut":0,"cells_raw":0,"read":"whole","date_system":"1900"}

{"sheet":"Auto y Rec por 3ros","index":0,"n_rows":143,"n_cols":13,"rows_kept":143,"cut":false,"hidden":false,"merged":[[129,0,142,0],[129,1,142,1],[5,0,5,2],[8,0,8,12],[71,0,84,0],[71,1,84,1],[85,0,98,0],[85,1,98,1],[101,0,114,0],[101,1,114,1],[27,0,40,0],[27,1,40,1],[41,0,54,0],[115,0,128,0],[115,1,128,1],[0,0,3,2],[13,0,26,0],[13,1,26,1],[10,0,10,12],[5,4,5,5],[5,6,5,8],[5,9,5,12],[6,0,6,2],[6,4,6,5],[6,6,6,8],[0,3,0,10],[0,11,0,12],[1,11,1,12],[2,11,2,12],[41,1,54,1],[57,0,70,0],[57,1,70,1],[3,11,3,12],[1,3,1,10],[2,3,3,10]]}
[null,null,null,"MATRIZ DE COSTOS UNITARIOS",null,null,null,null,null,null,null,"Código: 430,08,15-84"]
[null,null,null,"PROCESO REPARACIÓN INTEGRAL",null,null,null,null,null,null,null,"Versión: 01"]
[null,null,null,"PROCEDIMIENTO DISEÑO, FORMULACIÓN Y APROBACIÓN DEL PLAN INTEGRAL DE REPARACIÓN COLECTIVA PARA SUJETOS NO ÉTNICOS",null,null,null,null,null,null,null,"Fecha: 02/12/2021"]
[null,null,null,null,null,null,null,null,null,null,null,"Pagina: 1 de 7"]
[]
["NOMBRE DEL SUJETO COLECTIVO",null,null,"TIPOLOGÍA","NÚMERO DE ID DEL SRC",null,"DIRECCIÓN TERRITORIAL",null,null,"UBICACIÓN (DEPARTAMENTO - MUNICIPIO)"]
[null,null,null,null,null,null,null,null,null,"DEPARTAMENTO",null,"MUNICIPIO"]
[]
["COSTEO ACTIVIDADES OPERACIÓN LOGÍSTICA ATRIBUTO: AUTORRECONOCIMIENTO Y RECONOCIMIENTO POR TERCEROS"]
[]
["Para el diligenciamiento de este formato tenga en cuenta las siguientes instrucciones:\n1. Este es un formato de trabajo interno de la Unidad para las Víctimas, por tal razón, lo ideal es que no sea compartido con los SRC. \n2. La información a diligenciar corresponde a las actividades que se van a realizar por operación logística, en este sentido, solamente se deben integrar aquellas que requieran ser costeadas de acuerdo con la información de la cadena de valor del PIRC\n3. En la columna Tipo de solicitud, se debe desagregar si se trata de almuerzos, refrigerios, olla comunitaria, hidratación, materiales, transporte entre otros elementos de carácter general. \n4. En la columna Descripción detallada de la solicitud, debe brindar las características de la solicitud, por ejemplo \"Almuerzo para X personas\" o en Hidratación \"Agua natural en envase de bolsa plástica por 360 ml  y que cuente con Registro Sanitario Invima Paquete x50\". Estas descripciones se encuentran en el tarifario del operador que se encuentra vigente.\n5. En la columna Número de personas, solamente colocarlo para los ítems que aplique, por ejemplo en almuerzos, refrigerios o transporte. En los demás ítems dejar N/A. \n6. En la columna de cantidad, se debe realizar la multiplicación dependiento del número de días de una jornada o de la cantidad de ítems que se necesiten (por ejemplo para una actividad que se desarrolla durante dos días, el número de personas es 10, pero la cantidad va a ser 20, pues se multiplica por los dos días. Para el caso de materiales en número de personas aparece N/A, pero en cantidad puede aparecer 2, porque se requieren dos paquetes de marcadores borrables.\n7. En la columna Valor Unitario con IVA, debe ir el costo del ítem, es decir, el valor de un (1) almuerzo o de un (1) refrigerio\n8. En la columna Valor total se multiplica el valor unitario con IVA por la cantidad. La matriz ya se encuentra formulada para que les dé el total de manera automática\n9. La columna intermediación operador solamente se deberá diligenciar para aquellos ítems que no estén en el tarifario del operador, por ejemplo el transporte. En este sentido, al valor total del ítem se le debe sumar el % de intermediación del operador que esté vigente\n10. La columna J, debe relacionar los costos del año en el que se está haciendo el costeo. De esta manera, si el costeo se está haciendo en año 2021, pero la implementación inicia en 2022, la columna J deberá corresponder a 2021, dado que son los precios de referencia para el costeo. \n11. Incorpore las filas que considere necesarias, de acuerdo con el número de actividades que por operación logística se deben costear para un mismo producto. \n12. Por cada producto que integre acciones de operación logística, se debe diligenciar un cuadro"]
[]
["Producto 1: COLOQUE EL NOMBRE DEL PRODUCTO COMO SE ENCUENTRA EN CADENA DE VALOR","AÑO","TIPO DE SOLICITUD","DESCRIPCIÓN DETALLADA DE LA SOLICITUD","NÚMERO DE PERSONAS","CANTIDAD","VALOR UNITARIO CON IVA","VALOR TOTAL","INTERMEDIACIÓN OPERADOR ","TOTAL VIGENCIA AÑO:","TOTAL VIGENCIA AÑO:","TOTAL VIGENCIA AÑO:","TOTAL VIGENCIA AÑO:"]
["Actividad 1: COLOQUE NOMBRE DE LA ACTIVIDAD COMO SE ENCUENTRA EN CADENA DE VALOR","MES / AÑO",null,null,null,null,null,{"$f":"+G14*F14","v":0},null,{"$f":"H14+I14","v":0},{"$f":"(J14*3%)+J14","v":0},{"$f":"(K14*3%)+K14","v":0},{"$f":"(L14*3%)+L14","v":0}]
[null,null,null,null,null,null,null,{"$f":"+G15*F15","v":0},null,{"$f":"H15+I15","v":0},{"$f":"(J15*3%)+J15","v":0},0,0]
[null,null,null,null,null,null,null,0,null,0,{"$f":"(J16*3%)+J16","v":0},0,0]
[null,null,null,null,null,null,null,0,null,0,{"$f":"(J17*3%)+J17","v":0},0,0]
[null,null,null,null,null,null,null,0,null,0,{"$f":"(J18*3%)+J18","v":0},0,0]
[null,null,null,null,null,null,null,0,null,0,{"$f":"(J19*3%)+J19","v":0},0,0]
[null,null,null,null,null,null,null,0,null,0,{"$f":"(J20*3%)+J20","v":0},0,0]
[null,null,null,null,null,null,null,0,null,0,{"$f":"(J21*3%)+J21","v":0},0,0]
[null,null,null,null,null,null,null,0,null,0,{"$f":"(J22*3%)+J22","v":0},0,0]
[null,null,null,null,null,null,null,0,null,0,{"$f":"(J23*3%)+J23","v":0},0,0]
[null,null,null,null,null,null,null,0,null,0,{"$f":"(J24*3%)+J24","v":0},0,0]
[null,null,null,null,null,null,null,0,null,0,{"$f":"(J25*3%)+J25","v":0},0,0]
[null,null,null,null,null,null,null,0,null,0,{"$f":"(J26*3%)+J26","v":0},0,0]
[null,null,null,null,null,null,null,0,null,0,{"$f":"(J27*3%)+J27","v":0},0,0]
["Actividad 2: COLOQUE NOMBRE DE LA ACTIVIDAD COMO SE ENCUENTRA EN CADENA DE VALOR","MES / AÑO",null,null,null,null,null,0,null,0,{"$f":"(J28*3%)+J28","v":0},{"$f":"(K28*3%)+K28","v":0},{"$f":"(L28*3%)+L28","v":0}]
[null,null,null,null,null,null,null,{"$f":"+G29*F29","v":0},null,{"$f":"H29+I29","v":0},{"$f":"(J29*3%)+J29","v":0},0,0]
[null,null,null,null,null,null,null,0,null,0,{"$f":"(J30*3%)+J30","v":0},0,0]
[null,null,null,null,null,null,null,0,null,0,{"$f":"(J31*3%)+J31","v":0},0,0]
[null,null,null,null,null,null,null,0,null,0,{"$f":"(J32*3%)+J32","v":0},0,0]
[null,null,null,null,null,null,null,0,null,0,{"$f":"(J33*3%)+J33","v":0},0,0]
[null,null,null,null,null,null,null,0,null,0,{"$f":"(J34*3%)+J34","v":0},0,0]
[null,null,null,null,null,null,null,0,null,0,{"$f":"(J35*3%)+J35","v":0},0,0]
[null,null,null,null,null,null,null,0,null,0,{"$f":"(J36*3%)+J36","v":0},0,0]
[null,null,null,null,null,null,null,0,null,0,{"$f":"(J37*3%)+J37","v":0},0,0]
[null,null,null,null,null,null,null,0,null,0,{"$f":"(J38*3%)+J38","v":0},0,0]
[null,null,null,null,null,null,null,0,null,0,{"$f":"(J39*3%)+J39","v":0},0,0]
[null,null,null,null,null,null,null,0,null,0,{"$f":"(J40*3%)+J40","v":0},0,0]
[null,null,null,null,null,null,null,0,null,0,{"$f":"(J41*3%)+J41","v":0},0,0]
["Actividad N: COLOQUE NOMBRE DE LA ACTIVIDAD COMO SE ENCUENTRA EN CADENA DE VALOR","MES / AÑO",null,null,null,null,null,0,null,0,{"$f":"(J42*3%)+J42","v":0},{"$f":"(K42*3%)+K42","v":0},{"$f":"(L42*3%)+L42","v":0}]
[null,null,null,null,null,null,null,0,null,0,{"$f":"(J43*3%)+J43","v":0},0,0]
[null,null,null,null,null,null,null,0,null,0,{"$f":"(J44*3%)+J44","v":0},0,0]
[null,null,null,null,null,null,null,0,null,0,{"$f":"(J45*3%)+J45","v":0},0,0]
[null,null,null,null,null,null,null,0,null,0,{"$f":"(J46*3%)+J46","v":0},0,0]
[null,null,null,null,null,null,null,0,null,0,{"$f":"(J47*3%)+J47","v":0},0,0]
[null,null,null,null,null,null,null,0,null,0,{"$f":"(J48*3%)+J48","v":0},0,0]
[null,null,null,null,null,null,null,0,null,0,{"$f":"(J49*3%)+J49","v":0},0,0]
[null,null,null,null,null,null,null,0,null,0,{"$f":"(J50*3%)+J50","v":0},0,0]
[null,null,null,null,null,null,null,0,null,0,{"$f":"(J51*3%)+J51","v":0},0,0]
[null,null,null,null,null,null,null,0,null,0,{"$f":"(J52*3%)+J52","v":0},0,0]
[null,null,null,null,null,null,null,0,null,0,{"$f":"(J53*3%)+J53","v":0},0,0]
[null,null,null,null,null,null,null,0,null,0,{"$f":"(J54*3%)+J54","v":0},0,0]
[null,null,null,null,null,null,null,0,null,0,{"$f":"(J55*3%)+J55","v":0},0,0]
[]
["Producto 2: COLOQUE EL NOMBRE DEL PRODUCTO COMO SE ENCUENTRA EN CADENA DE VALOR","AÑO","TIPO DE SOLICITUD","DESCRIPCIÓN DETALLADA DE LA SOLICITUD","NÚMERO DE PERSONAS","CANTIDAD","VALOR UNITARIO CON IVA","VALOR TOTAL","INTERMEDIACIÓN OPERADOR ","TOTAL VIGENCIA AÑO:","TOTAL VIGENCIA AÑO:","TOTAL VIGENCIA AÑO:","TOTAL VIGENCIA AÑO:"]
["Actividad 1: COLOQUE NOMBRE DE LA ACTIVIDAD COMO SE ENCUENTRA EN CADENA DE VALOR","MES / AÑO",null,null,null,null,null,{"$f":"+G58*F58","v":0},null,{"$f":"H58+I58","v":0},{"$f":"(J58*3%)+J58","v":0},{"$f":"(K58*3%)+K58","v":0},{"$f":"(L58*3%)+L58","v":0}]
[null,null,null,null,null,null,null,0,null,0,{"$f":"(J59*3%)+J59","v":0},0,0]
[null,null,null,null,null,null,null,0,null,0,{"$f":"(J60*3%)+J60","v":0},0,0]
[null,null,null,null,null,null,null,0,null,0,{"$f":"(J61*3%)+J61","v":0},0,0]
[null,null,null,null,null,null,null,0,null,0,{"$f":"(J62*3%)+J62","v":0},0,0]
[null,null,null,null,null,null,null,0,null,0,{"$f":"(J63*3%)+J63","v":0},0,0]
[null,null,null,null,null,null,null,0,null,0,{"$f":"(J64*3%)+J64","v":0},0,0]
[null,null,null,null,null,null,null,0,null,0,{"$f":"(J65*3%)+J65","v":0},0,0]
[null,null,null,null,null,null,null,0,null,0,{"$f":"(J66*3%)+J66","v":0},0,0]
[null,null,null,null,null,null,null,0,null,0,{"$f":"(J67*3%)+J67","v":0},0,0]
[null,null,null,null,null,null,null,0,null,0,{"$f":"(J68*3%)+J68","v":0},0,0]
[null,null,null,null,null,null,null,0,null,0,{"$f":"(J69*3%)+J69","v":0},0,0]
[null,null,null,null,null,null,null,0,null,0,{"$f":"(J70*3%)+J70","v":0},0,0]
[null,null,null,null,null,null,null,0,null,0,{"$f":"(J71*3%)+J71","v":0},0,0]
["Actividad 2: COLOQUE NOMBRE DE LA ACTIVIDAD COMO SE ENCUENTRA EN CADENA DE VALOR","MES / AÑO",null,null,null,null,null,0,null,0,{"$f":"(J72*3%)+J72","v":0},{"$f":"(K72*3%)+K72","v":0},{"$f":"(L72*3%)+L72","v":0}]
[null,null,null,null,null,null,null,0,null,0,{"$f":"(J73*3%)+J73","v":0},0,0]
[null,null,null,null,null,null,null,0,null,0,{"$f":"(J74*3%)+J74","v":0},0,0]
[null,null,null,null,null,null,null,0,null,0,{"$f":"(J75*3%)+J75","v":0},0,0]
[null,null,null,null,null,null,null,0,null,0,{"$f":"(J76*3%)+J76","v":0},0,0]
[null,null,null,null,null,null,null,0,null,0,{"$f":"(J77*3%)+J77","v":0},0,0]
[null,null,null,null,null,null,null,0,null,0,{"$f":"(J78*3%)+J78","v":0},0,0]
[null,null,null,null,null,null,null,0,null,0,{"$f":"(J79*3%)+J79","v":0},0,0]
[null,null,null,null,null,null,null,0,null,0,{"$f":"(J80*3%)+J80","v":0},0,0]
[null,null,null,null,null,null,null,0,null,0,{"$f":"(J81*3%)+J81","v":0},0,0]
[null,null,null,null,null,null,null,0,null,0,{"$f":"(J82*3%)+J82","v":0},0,0]
[null,null,null,null,null,null,null,0,null,0,{"$f":"(J83*3%)+J83","v":0},0,0]
[null,null,null,null,null,null,null,0,null,0,{"$f":"(J84*3%)+J84","v":0},0,0]
[null,null,null,null,null,null,null,0,null,0,{"$f":"(J85*3%)+J85","v":0},0,0]
["Actividad N: COLOQUE NOMBRE DE LA ACTIVIDAD COMO SE ENCUENTRA EN CADENA DE VALOR","MES / AÑO",null,null,null,null,null,0,null,0,{"$f":"(J86*3%)+J86","v":0},{"$f":"(K86*3%)+K86","v":0},{"$f":"(L86*3%)+L86","v":0}]
[null,null,null,null,null,null,null,0,null,0,{"$f":"(J87*3%)+J87","v":0},0,0]
[null,null,null,null,null,null,null,0,null,0,{"$f":"(J88*3%)+J88","v":0},0,0]
[null,null,null,null,null,null,null,0,null,0,{"$f":"(J89*3%)+J89","v":0},0,0]
[null,null,null,null,null,null,null,0,null,0,{"$f":"(J90*3%)+J90","v":0},0,0]
[null,null,null,null,null,null,null,0,null,0,{"$f":"(J91*3%)+J91","v":0},0,0]
[null,null,null,null,null,null,null,0,null,0,{"$f":"(J92*3%)+J92","v":0},0,0]
[null,null,null,null,null,null,null,0,null,0,{"$f":"(J93*3%)+J93","v":0},0,0]
[null,null,null,null,null,null,null,0,null,0,{"$f":"(J94*3%)+J94","v":0},0,0]
[null,null,null,null,null,null,null,0,null,0,{"$f":"(J95*3%)+J95","v":0},0,0]
[null,null,null,null,null,null,null,0,null,0,{"$f":"(J96*3%)+J96","v":0},0,0]
[null,null,null,null,null,null,null,0,null,0,{"$f":"(J97*3%)+J97","v":0},0,0]
[null,null,null,null,null,null,null,0,null,0,{"$f":"(J98*3%)+J98","v":0},0,0]
[null,null,null,null,null,null,null,0,null,0,{"$f":"(J99*3%)+J99","v":0},0,0]
[]
["Producto N: COLOQUE EL NOMBRE DEL PRODUCTO COMO SE ENCUENTRA EN CADENA DE VALOR","AÑO","TIPO DE SOLICITUD","DESCRIPCIÓN DETALLADA DE LA SOLICITUD","NÚMERO DE PERSONAS","CANTIDAD","VALOR UNITARIO CON IVA","VALOR TOTAL","INTERMEDIACIÓN OPERADOR ","TOTAL VIGENCIA AÑO:","TOTAL VIGENCIA AÑO:","TOTAL VIGENCIA AÑO:","TOTAL VIGENCIA AÑO:"]
["Actividad 1: COLOQUE NOMBRE DE LA ACTIVIDAD COMO SE ENCUENTRA EN CADENA DE VALOR","MES / AÑO",null,null,null,null,null,{"$f":"+G102*F102","v":0},null,{"$f":"H102+I102","v":0},{"$f":"(J102*3%)+J102","v":0},{"$f":"(K102*3%)+K102","v":0},{"$f":"(L102*3%)+L102","v":0}]
[null,null,null,null,null,null,null,0,null,0,{"$f":"(J103*3%)+J103","v":0},0,0]
[null,null,null,null,null,null,null,0,null,0,{"$f":"(J104*3%)+J104","v":0},0,0]
[null,null,null,null,null,null,null,0,null,0,{"$f":"(J105*3%)+J105","v":0},0,0]
[null,null,null,null,null,null,null,0,null,0,{"$f":"(J106*3%)+J106","v":0},0,0]
[null,null,null,null,null,null,null,0,null,0,{"$f":"(J107*3%)+J107","v":0},0,0]
[null,null,null,null,null,null,null,0,null,0,{"$f":"(J108*3%)+J108","v":0},0,0]
[null,null,null,null,null,null,null,0,null,0,{"$f":"(J109*3%)+J109","v":0},0,0]
[null,null,null,null,null,null,null,0,null,0,{"$f":"(J110*3%)+J110","v":0},0,0]
[null,null,null,null,null,null,null,0,null,0,{"$f":"(J111*3%)+J111","v":0},0,0]
[null,null,null,null,null,null,null,0,null,0,{"$f":"(J112*3%)+J112","v":0},0,0]
[null,null,null,null,null,null,null,0,null,0,{"$f":"(J113*3%)+J113","v":0},0,0]
[null,null,null,null,null,null,null,0,null,0,{"$f":"(J114*3%)+J114","v":0},0,0]
[null,null,null,null,null,null,null,0,null,0,{"$f":"(J115*3%)+J115","v":0},0,0]
["Actividad 2: COLOQUE NOMBRE DE LA ACTIVIDAD COMO SE ENCUENTRA EN CADENA DE VALOR","MES / AÑO",null,null,null,null,null,0,null,0,{"$f":"(J116*3%)+J116","v":0},{"$f":"(K116*3%)+K116","v":0},{"$f":"(L116*3%)+L116","v":0}]
[null,null,null,null,null,null,null,0,null,0,{"$f":"(J117*3%)+J117","v":0},0,0]
[null,null,null,null,null,null,null,0,null,0,{"$f":"(J118*3%)+J118","v":0},0,0]
[null,null,null,null,null,null,null,0,null,0,{"$f":"(J119*3%)+J119","v":0},0,0]
[null,null,null,null,null,null,null,0,null,0,{"$f":"(J120*3%)+J120","v":0},0,0]
[null,null,null,null,null,null,null,0,null,0,{"$f":"(J121*3%)+J121","v":0},0,0]
[null,null,null,null,null,null,null,0,null,0,{"$f":"(J122*3%)+J122","v":0},0,0]
[null,null,null,null,null,null,null,0,null,0,{"$f":"(J123*3%)+J123","v":0},0,0]
[null,null,null,null,null,null,null,0,null,0,{"$f":"(J124*3%)+J124","v":0},0,0]
[null,null,null,null,null,null,null,0,null,0,{"$f":"(J125*3%)+J125","v":0},0,0]
[null,null,null,null,null,null,null,0,null,0,{"$f":"(J126*3%)+J126","v":0},0,0]
[null,null,null,null,null,null,null,0,null,0,{"$f":"(J127*3%)+J127","v":0},0,0]
[null,null,null,null,null,null,null,0,null,0,{"$f":"(J128*3%)+J128","v":0},0,0]
[null,null,null,null,null,null,null,0,null,0,{"$f":"(J129*3%)+J129","v":0},0,0]
["Actividad N: COLOQUE NOMBRE DE LA ACTIVIDAD COMO SE ENCUENTRA EN CADENA DE VALOR","MES / AÑO",null,null,null,null,null,0,null,0,{"$f":"(J130*3%)+J130","v":0},{"$f":"(K130*3%)+K130","v":0},{"$f":"(L130*3%)+L130","v":0}]
[null,null,null,null,null,null,null,0,null,0,{"$f":"(J131*3%)+J131","v":0},0,0]
[null,null,null,null,null,null,null,0,null,0,{"$f":"(J132*3%)+J132","v":0},0,0]
[null,null,null,null,null,null,null,0,null,0,{"$f":"(J133*3%)+J133","v":0},0,0]
[null,null,null,null,null,null,null,0,null,0,{"$f":"(J134*3%)+J134","v":0},0,0]
[null,null,null,null,null,null,null,0,null,0,{"$f":"(J135*3%)+J135","v":0},0,0]
[null,null,null,null,null,null,null,0,null,0,{"$f":"(J136*3%)+J136","v":0},0,0]
[null,null,null,null,null,null,null,0,null,0,{"$f":"(J137*3%)+J137","v":0},0,0]
[null,null,null,null,null,null,null,0,null,0,{"$f":"(J138*3%)+J138","v":0},0,0]
[null,null,null,null,null,null,null,0,null,0,{"$f":"(J139*3%)+J139","v":0},0,0]
[null,null,null,null,null,null,null,0,null,0,{"$f":"(J140*3%)+J140","v":0},0,0]
[null,null,null,null,null,null,null,0,null,0,{"$f":"(J141*3%)+J141","v":0},0,0]
[null,null,null,null,null,null,null,0,null,0,{"$f":"(J142*3%)+J142","v":0},0,0]
[null,null,null,null,null,null,null,0,null,0,{"$f":"(J143*3%)+J143","v":0},0,0]

{"sheet":"Prácticas colectivas","index":1,"n_rows":143,"n_cols":13,"rows_kept":143,"cut":false,"hidden":false,"merged":[[0,0,3,2],[0,3,0,10],[0,11,0,12],[1,3,1,10],[1,11,1,12],[2,3,3,10],[2,11,2,12],[3,11,3,12],[5,0,5,2],[5,4,5,5],[5,6,5,8],[5,9,5,12],[6,0,6,2],[6,4,6,5],[6,6,6,8],[8,0,8,12],[10,0,10,12],[13,0,26,0],[13,1,26,1],[27,0,40,0],[27,1,40,1],[41,0,54,0],[41,1,54,1],[57,0,70,0],[57,1,70,1],[71,0,84,0],[71,1,84,1],[129,0,142,0],[129,1,142,1],[85,0,98,0],[85,1,98,1],[101,0,114,0],[101,1,114,1],[115,0,128,0],[115,1,128,1]]}
[null,null,null,"MATRIZ DE COSTOS UNITARIOS",null,null,null,null,null,null,null,"Código: 430,08,15-84"]
[null,null,null,"PROCESO REPARACIÓN INTEGRAL",null,null,null,null,null,null,null,"Versión: 01"]
[null,null,null,"PROCEDIMIENTO DISEÑO, FORMULACIÓN Y APROBACIÓN DEL PLAN INTEGRAL DE REPARACIÓN COLECTIVA PARA SUJETOS NO ÉTNICOS",null,null,null,null,null,null,null,"Fecha: 02/12/2021"]
[null,null,null,null,null,null,null,null,null,null,null,"Pagina: 2 de 7"]
[]
["NOMBRE DEL SUJETO COLECTIVO",null,null,"TIPOLOGÍA","NÚMERO DE ID DEL SRC",null,"DIRECCIÓN TERRITORIAL",null,null,"UBICACIÓN (DEPARTAMENTO - MUNICIPIO)"]
[null,null,null,null,null,null,null,null,null,"DEPARTAMENTO",null,"MUNICIPIO"]
[]
["COSTEO ACTIVIDADES OPERACIÓN LOGÍSTICA ATRIBUTO: PRÁCTICAS COLECTIVAS"]
[]
["Para el diligenciamiento de este formato tenga en cuenta las siguientes instrucciones:\n1. Este es un formato de trabajo interno de la Unidad para las Víctimas, por tal razón, lo ideal es que no sea compartido con los SRC. \n2. La información a diligenciar corresponde a las actividades que se van a realizar por operación logística, en este sentido, solamente se deben integrar aquellas que requieran ser costeadas de acuerdo con la información de la cadena de valor del PIRC\n3. En la columna Tipo de solicitud, se debe desagregar si se trata de almuerzos, refrigerios, olla comunitaria, hidratación, materiales, transporte entre otros elementos de carácter general. \n4. En la columna Descripción detallada de la solicitud, debe brindar las características de la solicitud, por ejemplo \"Almuerzo para X personas\" o en Hidratación \"Agua natural en envase de bolsa plástica por 360 ml  y que cuente con Registro Sanitario Invima Paquete x50\". Estas descripciones se encuentran en el tarifario del operador que se encuentra vigente.\n5. En la columna Número de personas, solamente colocarlo para los ítems que aplique, por ejemplo en almuerzos, refrigerios o transporte. En los demás ítems dejar N/A. \n6. En la columna de cantidad, se debe realizar la multiplicación dependiento del número de días de una jornada o de la cantidad de ítems que se necesiten (por ejemplo para una actividad que se desarrolla durante dos días, el número de personas es 10, pero la cantidad va a ser 20, pues se multiplica por los dos días. Para el caso de materiales en número de personas aparece N/A, pero en cantidad puede aparecer 2, porque se requieren dos paquetes de marcadores borrables.\n7. En la columna Valor Unitario con IVA, debe ir el costo del ítem, es decir, el valor de un (1) almuerzo o de un (1) refrigerio\n8. En la columna Valor total se multiplica el valor unitario con IVA por la cantidad. La matriz ya se encuentra formulada para que les dé el total de manera automática\n9. La columna intermediación operador solamente se deberá diligenciar para aquellos ítems que no estén en el tarifario del operador, por ejemplo el transporte. En este sentido, al valor total del ítem se le debe sumar el % de intermediación del operador que esté vigente\n10. La columna J, debe relacionar los costos del año en el que se está haciendo el costeo. De esta manera, si el costeo se está haciendo en año 2021, pero la implementación inicia en 2022, la columna J deberá corresponder a 2021, dado que son los precios de referencia para el costeo. \n11. Incorpore las filas que considere necesarias, de acuerdo con el número de actividades que por operación logística se deben costear para un mismo producto. \n12. Por cada producto que integre acciones de operación logística, se debe diligenciar un cuadro"]
[]
["Producto 1: COLOQUE EL NOMBRE DEL PRODUCTO COMO SE ENCUENTRA EN CADENA DE VALOR","AÑO","TIPO DE SOLICITUD","DESCRIPCIÓN DETALLADA DE LA SOLICITUD","NÚMERO DE PERSONAS","CANTIDAD","VALOR UNITARIO CON IVA","VALOR TOTAL","INTERMEDIACIÓN OPERADOR ","TOTAL VIGENCIA AÑO:","TOTAL VIGENCIA AÑO:","TOTAL VIGENCIA AÑO:","TOTAL VIGENCIA AÑO:"]
["Actividad 1: COLOQUE NOMBRE DE LA ACTIVIDAD COMO SE ENCUENTRA EN CADENA DE VALOR","MES / AÑO",null,null,null,null,null,{"$f":"+G14*F14","v":0},null,{"$f":"H14+I14","v":0},{"$f":"(J14*3%)+J14","v":0},{"$f":"(K14*3%)+K14","v":0},{"$f":"(L14*3%)+L14","v":0}]
[null,null,null,null,null,null,null,0,null,0,{"$f":"(J15*3%)+J15","v":0},0,0]
[null,null,null,null,null,null,null,0,null,0,0,0,0]
[null,null,null,null,null,null,null,0,null,0,0,0,0]
[null,null,null,null,null,null,null,0,null,0,0,0,0]
[null,null,null,null,null,null,null,0,null,0,0,0,0]
[null,null,null,null,null,null,null,0,null,0,0,0,0]
[null,null,null,null,null,null,null,0,null,0,0,0,0]
[null,null,null,null,null,null,null,0,null,0,0,0,0]
[null,null,null,null,null,null,null,0,null,0,0,0,0]
[null,null,null,null,null,null,null,0,null,0,0,0,0]
[null,null,null,null,null,null,null,0,null,0,0,0,0]
[null,null,null,null,null,null,null,0,null,0,0,0,0]
[null,null,null,null,null,null,null,0,null,0,0,0,0]
["Actividad 2: COLOQUE NOMBRE DE LA ACTIVIDAD COMO SE ENCUENTRA EN CADENA DE VALOR","MES / AÑO",null,null,null,null,null,0,null,0,{"$f":"(J28*3%)+J28","v":0},{"$f":"(K28*3%)+K28","v":0},{"$f":"(L28*3%)+L28","v":0}]
[null,null,null,null,null,null,null,0,null,0,{"$f":"(J29*3%)+J29","v":0},0,0]
[null,null,null,null,null,null,null,0,null,0,0,0,0]
[null,null,null,null,null,null,null,0,null,0,0,0,0]
[null,null,null,null,null,null,null,0,null,0,0,0,0]
[null,null,null,null,null,null,null,0,null,0,0,0,0]
[null,null,null,null,null,null,null,0,null,0,0,0,0]
[null,null,null,null,null,null,null,0,null,0,0,0,0]
[null,null,null,null,null,null,null,0,null,0,0,0,0]
[null,null,null,null,null,null,null,0,null,0,0,0,0]
[null,null,null,null,null,null,null,0,null,0,0,0,0]
[null,null,null,null,null,null,null,0,null,0,0,0,0]
[null,null,null,null,null,null,null,0,null,0,0,0,0]
[null,null,null,null,null,null,null,0,null,0,0,0,0]
["Actividad N: COLOQUE NOMBRE DE LA ACTIVIDAD COMO SE ENCUENTRA EN CADENA DE VALOR","MES / AÑO",null,null,null,null,null,0,null,0,{"$f":"(J42*3%)+J42","v":0},{"$f":"(K42*3%)+K42","v":0},{"$f":"(L42*3%)+L42","v":0}]
[null,null,null,null,null,null,null,0,null,0,{"$f":"(J43*3%)+J43","v":0},0,0]
[null,null,null,null,null,null,null,0,null,0,0,0,0]
[null,null,null,null,null,null,null,0,null,0,0,0,0]
[null,null,null,null,null,null,null,0,null,0,0,0,0]
[null,null,null,null,null,null,null,0,null,0,0,0,0]
[null,null,null,null,null,null,null,0,null,0,0,0,0]
[null,null,null,null,null,null,null,0,null,0,0,0,0]
[null,null,null,null,null,null,null,0,null,0,0,0,0]
[null,null,null,null,null,null,null,0,null,0,0,0,0]
[null,null,null,null,null,null,null,0,null,0,0,0,0]
[null,null,null,null,null,null,null,0,null,0,0,0,0]
[null,null,null,null,null,null,null,0,null,0,0,0,0]
[null,null,null,null,null,null,null,0,null,0,0,0,0]
[]
["Producto 2: COLOQUE EL NOMBRE DEL PRODUCTO COMO SE ENCUENTRA EN CADENA DE VALOR","AÑO","TIPO DE SOLICITUD","DESCRIPCIÓN DETALLADA DE LA SOLICITUD","NÚMERO DE PERSONAS","CANTIDAD","VALOR UNITARIO CON IVA","VALOR TOTAL","INTERMEDIACIÓN OPERADOR ","TOTAL VIGENCIA AÑO:","TOTAL VIGENCIA AÑO:","TOTAL VIGENCIA AÑO:","TOTAL VIGENCIA AÑO:"]
["Actividad 1: COLOQUE NOMBRE DE LA ACTIVIDAD COMO SE ENCUENTRA EN CADENA DE VALOR","MES / AÑO",null,null,null,null,null,{"$f":"+G58*F58","v":0},null,{"$f":"H58+I58","v":0},{"$f":"(J58*3%)+J58","v":0},{"$f":"(K58*3%)+K58","v":0},{"$f":"(L58*3%)+L58","v":0}]
[null,null,null,null,null,null,null,0,null,0,{"$f":"(J59*3%)+J59","v":0},0,0]
[null,null,null,null,null,null,null,0,null,0,0,0,0]
[null,null,null,null,null,null,null,0,null,0,0,0,0]
[null,null,null,null,null,null,null,0,null,0,0,0,0]
[null,null,null,null,null,null,null,0,null,0,0,0,0]
[null,null,null,null,null,null,null,0,null,0,0,0,0]
[null,null,null,null,null,null,null,0,null,0,0,0,0]
[null,null,null,null,null,null,null,0,null,0,0,0,0]
[null,null,null,null,null,null,null,0,null,0,0,0,0]
[null,null,null,null,null,null,null,0,null,0,0,0,0]
[null,null,null,null,null,null,null,0,null,0,0,0,0]
[null,null,null,null,null,null,null,0,null,0,0,0,0]
[null,null,null,null,null,null,null,0,null,0,0,0,0]
["Actividad 2: COLOQUE NOMBRE DE LA ACTIVIDAD COMO SE ENCUENTRA EN CADENA DE VALOR","MES / AÑO",null,null,null,null,null,0,null,0,{"$f":"(J72*3%)+J72","v":0},{"$f":"(K72*3%)+K72","v":0},{"$f":"(L72*3%)+L72","v":0}]
[null,null,null,null,null,null,null,0,null,0,{"$f":"(J73*3%)+J73","v":0},0,0]
[null,null,null,null,null,null,null,0,null,0,0,0,0]
[null,null,null,null,null,null,null,0,null,0,0,0,0]
[null,null,null,null,null,null,null,0,null,0,0,0,0]
[null,null,null,null,null,null,null,0,null,0,0,0,0]
[null,null,null,null,null,null,null,0,null,0,0,0,0]
[null,null,null,null,null,null,null,0,null,0,0,0,0]
[null,null,null,null,null,null,null,0,null,0,0,0,0]
[null,null,null,null,null,null,null,0,null,0,0,0,0]
[null,null,null,null,null,null,null,0,null,0,0,0,0]
[null,null,null,null,null,null,null,0,null,0,0,0,0]
[null,null,null,null,null,null,null,0,null,0,0,0,0]
[null,null,null,null,null,null,null,0,null,0,0,0,0]
["Actividad N: COLOQUE NOMBRE DE LA ACTIVIDAD COMO SE ENCUENTRA EN CADENA DE VALOR","MES / AÑO",null,null,null,null,null,0,null,0,{"$f":"(J86*3%)+J86","v":0},{"$f":"(K86*3%)+K86","v":0},{"$f":"(L86*3%)+L86","v":0}]
[null,null,null,null,null,null,null,0,null,0,{"$f":"(J87*3%)+J87","v":0},0,0]
[null,null,null,null,null,null,null,0,null,0,0,0,0]
[null,null,null,null,null,null,null,0,null,0,0,0,0]
[null,null,null,null,null,null,null,0,null,0,0,0,0]
[null,null,null,null,null,null,null,0,null,0,0,0,0]
[null,null,null,null,null,null,null,0,null,0,0,0,0]
[null,null,null,null,null,null,null,0,null,0,0,0,0]
[null,null,null,null,null,null,null,0,null,0,0,0,0]
[null,null,null,null,null,null,null,0,null,0,0,0,0]
[null,null,null,null,null,null,null,0,null,0,0,0,0]
[null,null,null,null,null,null,null,0,null,0,0,0,0]
[null,null,null,null,null,null,null,0,null,0,0,0,0]
[null,null,null,null,null,null,null,0,null,0,0,0,0]
[]
["Producto N: COLOQUE EL NOMBRE DEL PRODUCTO COMO SE ENCUENTRA EN CADENA DE VALOR","AÑO","TIPO DE SOLICITUD","DESCRIPCIÓN DETALLADA DE LA SOLICITUD","NÚMERO DE PERSONAS","CANTIDAD","VALOR UNITARIO CON IVA","VALOR TOTAL","INTERMEDIACIÓN OPERADOR ","TOTAL VIGENCIA AÑO:","TOTAL VIGENCIA AÑO:","TOTAL VIGENCIA AÑO:","TOTAL VIGENCIA AÑO:"]
["Actividad 1: COLOQUE NOMBRE DE LA ACTIVIDAD COMO SE ENCUENTRA EN CADENA DE VALOR","MES / AÑO",null,null,null,null,null,{"$f":"+G102*F102","v":0},null,{"$f":"H102+I102","v":0},{"$f":"(J102*3%)+J102","v":0},{"$f":"(K102*3%)+K102","v":0},{"$f":"(L102*3%)+L102","v":0}]
[null,null,null,null,null,null,null,0,null,0,{"$f":"(J103*3%)+J103","v":0},0,0]
[null,null,null,null,null,null,null,0,null,0,0,0,0]
[null,null,null,null,null,null,null,0,null,0,0,0,0]
[null,null,null,null,null,null,null,0,null,0,0,0,0]
[null,null,null,null,null,null,null,0,null,0,0,0,0]
[null,null,null,null,null,null,null,0,null,0,0,0,0]
[null,null,null,null,null,null,null,0,null,0,0,0,0]
[null,null,null,null,null,null,null,0,null,0,0,0,0]
[null,null,null,null,null,null,null,0,null,0,0,0,0]
[null,null,null,null,null,null,null,0,null,0,0,0,0]
[null,null,null,null,null,null,null,0,null,0,0,0,0]
[null,null,null,null,null,null,null,0,null,0,0,0,0]
[null,null,null,null,null,null,null,0,null,0,0,0,0]
["Actividad 2: COLOQUE NOMBRE DE LA ACTIVIDAD COMO SE ENCUENTRA EN CADENA DE VALOR","MES / AÑO",null,null,null,null,null,0,null,0,{"$f":"(J116*3%)+J116","v":0},{"$f":"(K116*3%)+K116","v":0},{"$f":"(L116*3%)+L116","v":0}]
[null,null,null,null,null,null,null,0,null,0,{"$f":"(J117*3%)+J117","v":0},0,0]
[null,null,null,null,null,null,null,0,null,0,0,0,0]
[null,null,null,null,null,null,null,0,null,0,0,0,0]
[null,null,null,null,null,null,null,0,null,0,0,0,0]
[null,null,null,null,null,null,null,0,null,0,0,0,0]
[null,null,null,null,null,null,null,0,null,0,0,0,0]
[null,null,null,null,null,null,null,0,null,0,0,0,0]
[null,null,null,null,null,null,null,0,null,0,0,0,0]
[null,null,null,null,null,null,null,0,null,0,0,0,0]
[null,null,null,null,null,null,null,0,null,0,0,0,0]
[null,null,null,null,null,null,null,0,null,0,0,0,0]
[null,null,null,null,null,null,null,0,null,0,0,0,0]
[null,null,null,null,null,null,null,0,null,0,0,0,0]
["Actividad N: COLOQUE NOMBRE DE LA ACTIVIDAD COMO SE ENCUENTRA EN CADENA DE VALOR","MES / AÑO",null,null,null,null,null,0,null,0,{"$f":"(J130*3%)+J130","v":0},{"$f":"(K130*3%)+K130","v":0},{"$f":"(L130*3%)+L130","v":0}]
[null,null,null,null,null,null,null,0,null,0,{"$f":"(J131*3%)+J131","v":0},0,0]
[null,null,null,null,null,null,null,0,null,0,0,0,0]
[null,null,null,null,null,null,null,0,null,0,0,0,0]
[null,null,null,null,null,null,null,0,null,0,0,0,0]
[null,null,null,null,null,null,null,0,null,0,0,0,0]
[null,null,null,null,null,null,null,0,null,0,0,0,0]
[null,null,null,null,null,null,null,0,null,0,0,0,0]
[null,null,null,null,null,null,null,0,null,0,0,0,0]
[null,null,null,null,null,null,null,0,null,0,0,0,0]
[null,null,null,null,null,null,null,0,null,0,0,0,0]
[null,null,null,null,null,null,null,0,null,0,0,0,0]
[null,null,null,null,null,null,null,0,null,0,0,0,0]
[null,null,null,null,null,null,null,0,null,0,0,0,0]

{"sheet":"Proyecto colectivo","index":2,"n_rows":143,"n_cols":13,"rows_kept":143,"cut":false,"hidden":false,"merged":[[0,0,3,2],[0,3,0,10],[0,11,0,12],[1,3,1,10],[1,11,1,12],[2,3,3,10],[2,11,2,12],[3,11,3,12],[5,0,5,2],[5,4,5,5],[5,6,5,8],[5,9,5,12],[6,0,6,2],[6,4,6,5],[6,6,6,8],[8,0,8,12],[10,0,10,12],[13,0,26,0],[13,1,26,1],[27,0,40,0],[27,1,40,1],[41,0,54,0],[41,1,54,1],[57,0,70,0],[57,1,70,1],[71,0,84,0],[71,1,84,1],[129,0,142,0],[129,1,142,1],[85,0,98,0],[85,1,98,1],[101,0,114,0],[101,1,114,1],[115,0,128,0],[115,1,128,1]]}
[null,null,null,"MATRIZ DE COSTOS UNITARIOS",null,null,null,null,null,null,null,"Código: 430,08,15-84"]
[null,null,null,"PROCESO REPARACIÓN INTEGRAL",null,null,null,null,null,null,null,"Versión: 01"]
[null,null,null,"PROCEDIMIENTO DISEÑO, FORMULACIÓN Y APROBACIÓN DEL PLAN INTEGRAL DE REPARACIÓN COLECTIVA PARA SUJETOS NO ÉTNICOS",null,null,null,null,null,null,null,"Fecha: 02/12/2021"]
[null,null,null,null,null,null,null,null,null,null,null,"Pagina: 3 de 7"]
[]
["NOMBRE DEL SUJETO COLECTIVO",null,null,"TIPOLOGÍA","NÚMERO DE ID DEL SRC",null,"DIRECCIÓN TERRITORIAL",null,null,"UBICACIÓN (DEPARTAMENTO - MUNICIPIO)"]
[null,null,null,null,null,null,null,null,null,"DEPARTAMENTO",null,"MUNICIPIO"]
[]
["COSTEO ACTIVIDADES OPERACIÓN LOGÍSTICA ATRIBUTO: PROYECTO COLECTIVO"]
[]
["Para el diligenciamiento de este formato tenga en cuenta las siguientes instrucciones:\n1. Este es un formato de trabajo interno de la Unidad para las Víctimas, por tal razón, lo ideal es que no sea compartido con los SRC. \n2. La información a diligenciar corresponde a las actividades que se van a realizar por operación logística, en este sentido, solamente se deben integrar aquellas que requieran ser costeadas de acuerdo con la información de la cadena de valor del PIRC\n3. En la columna Tipo de solicitud, se debe desagregar si se trata de almuerzos, refrigerios, olla comunitaria, hidratación, materiales, transporte entre otros elementos de carácter general. \n4. En la columna Descripción detallada de la solicitud, debe brindar las características de la solicitud, por ejemplo \"Almuerzo para X personas\" o en Hidratación \"Agua natural en envase de bolsa plástica por 360 ml  y que cuente con Registro Sanitario Invima Paquete x50\". Estas descripciones se encuentran en el tarifario del operador que se encuentra vigente.\n5. En la columna Número de personas, solamente colocarlo para los ítems que aplique, por ejemplo en almuerzos, refrigerios o transporte. En los demás ítems dejar N/A. \n6. En la columna de cantidad, se debe realizar la multiplicación dependiento del número de días de una jornada o de la cantidad de ítems que se necesiten (por ejemplo para una actividad que se desarrolla durante dos días, el número de personas es 10, pero la cantidad va a ser 20, pues se multiplica por los dos días. Para el caso de materiales en número de personas aparece N/A, pero en cantidad puede aparecer 2, porque se requieren dos paquetes de marcadores borrables.\n7. En la columna Valor Unitario con IVA, debe ir el costo del ítem, es decir, el valor de un (1) almuerzo o de un (1) refrigerio\n8. En la columna Valor total se multiplica el valor unitario con IVA por la cantidad. La matriz ya se encuentra formulada para que les dé el total de manera automática\n9. La columna intermediación operador solamente se deberá diligenciar para aquellos ítems que no estén en el tarifario del operador, por ejemplo el transporte. En este sentido, al valor total del ítem se le debe sumar el % de intermediación del operador que esté vigente\n10. La columna J, debe relacionar los costos del año en el que se está haciendo el costeo. De esta manera, si el costeo se está haciendo en año 2021, pero la implementación inicia en 2022, la columna J deberá corresponder a 2021, dado que son los precios de referencia para el costeo. \n11. Incorpore las filas que considere necesarias, de acuerdo con el número de actividades que por operación logística se deben costear para un mismo producto. \n12. Por cada producto que integre acciones de operación logística, se debe diligenciar un cuadro"]
[]
["Producto 1: COLOQUE EL NOMBRE DEL PRODUCTO COMO SE ENCUENTRA EN CADENA DE VALOR","AÑO","TIPO DE SOLICITUD","DESCRIPCIÓN DETALLADA DE LA SOLICITUD","NÚMERO DE PERSONAS","CANTIDAD","VALOR UNITARIO CON IVA","VALOR TOTAL","INTERMEDIACIÓN OPERADOR ","TOTAL VIGENCIA AÑO:","TOTAL VIGENCIA AÑO:","TOTAL VIGENCIA AÑO:","TOTAL VIGENCIA AÑO:"]
["Actividad 1: COLOQUE NOMBRE DE LA ACTIVIDAD COMO SE ENCUENTRA EN CADENA DE VALOR","MES / AÑO",null,null,null,null,null,{"$f":"+G14*F14","v":0},null,{"$f":"H14+I14","v":0},{"$f":"(J14*3%)+J14","v":0},{"$f":"(K14*3%)+K14","v":0},{"$f":"(L14*3%)+L14","v":0}]
[null,null,null,null,null,null,null,0,null,0,{"$f":"(J15*3%)+J15","v":0},0,0]
[null,null,null,null,null,null,null,0,null,0,0,0,0]
[null,null,null,null,null,null,null,0,null,0,0,0,0]
[null,null,null,null,null,null,null,0,null,0,0,0,0]
[null,null,null,null,null,null,null,0,null,0,0,0,0]
[null,null,null,null,null,null,null,0,null,0,0,0,0]
[null,null,null,null,null,null,null,0,null,0,0,0,0]
[null,null,null,null,null,null,null,0,null,0,0,0,0]
[null,null,null,null,null,null,null,0,null,0,0,0,0]
[null,null,null,null,null,null,null,0,null,0,0,0,0]
[null,null,null,null,null,null,null,0,null,0,0,0,0]
[null,null,null,null,null,null,null,0,null,0,0,0,0]
[null,null,null,null,null,null,null,0,null,0,0,0,0]
["Actividad 2: COLOQUE NOMBRE DE LA ACTIVIDAD COMO SE ENCUENTRA EN CADENA DE VALOR","MES / AÑO",null,null,null,null,null,0,null,0,{"$f":"(J28*3%)+J28","v":0},{"$f":"(K28*3%)+K28","v":0},{"$f":"(L28*3%)+L28","v":0}]
[null,null,null,null,null,null,null,0,null,0,{"$f":"(J29*3%)+J29","v":0},0,0]
[null,null,null,null,null,null,null,0,null,0,0,0,0]
[null,null,null,null,null,null,null,0,null,0,0,0,0]
[null,null,null,null,null,null,null,0,null,0,0,0,0]
[null,null,null,null,null,null,null,0,null,0,0,0,0]
[null,null,null,null,null,null,null,0,null,0,0,0,0]
[null,null,null,null,null,null,null,0,null,0,0,0,0]
[null,null,null,null,null,null,null,0,null,0,0,0,0]
[null,null,null,null,null,null,null,0,null,0,0,0,0]
[null,null,null,null,null,null,null,0,null,0,0,0,0]
[null,null,null,null,null,null,null,0,null,0,0,0,0]
[null,null,null,null,null,null,null,0,null,0,0,0,0]
[null,null,null,null,null,null,null,0,null,0,0,0,0]
["Actividad N: COLOQUE NOMBRE DE LA ACTIVIDAD COMO SE ENCUENTRA EN CADENA DE VALOR","MES / AÑO",null,null,null,null,null,0,null,0,{"$f":"(J42*3%)+J42","v":0},{"$f":"(K42*3%)+K42","v":0},{"$f":"(L42*3%)+L42","v":0}]
[null,null,null,null,null,null,null,0,null,0,{"$f":"(J43*3%)+J43","v":0},0,0]
[null,null,null,null,null,null,null,0,null,0,0,0,0]
[null,null,null,null,null,null,null,0,null,0,0,0,0]
[null,null,null,null,null,null,null,0,null,0,0,0,0]
[null,null,null,null,null,null,null,0,null,0,0,0,0]
[null,null,null,null,null,null,null,0,null,0,0,0,0]
[null,null,null,null,null,null,null,0,null,0,0,0,0]
[null,null,null,null,null,null,null,0,null,0,0,0,0]
[null,null,null,null,null,null,null,0,null,0,0,0,0]
[null,null,null,null,null,null,null,0,null,0,0,0,0]
[null,null,null,null,null,null,null,0,null,0,0,0,0]
[null,null,null,null,null,null,null,0,null,0,0,0,0]
[null,null,null,null,null,null,null,0,null,0,0,0,0]
[]
["Producto 2: COLOQUE EL NOMBRE DEL PRODUCTO COMO SE ENCUENTRA EN CADENA DE VALOR","AÑO","TIPO DE SOLICITUD","DESCRIPCIÓN DETALLADA DE LA SOLICITUD","NÚMERO DE PERSONAS","CANTIDAD","VALOR UNITARIO CON IVA","VALOR TOTAL","INTERMEDIACIÓN OPERADOR ","TOTAL VIGENCIA AÑO:","TOTAL VIGENCIA AÑO:","TOTAL VIGENCIA AÑO:","TOTAL VIGENCIA AÑO:"]
["Actividad 1: COLOQUE NOMBRE DE LA ACTIVIDAD COMO SE ENCUENTRA EN CADENA DE VALOR","MES / AÑO",null,null,null,null,null,{"$f":"+G58*F58","v":0},null,{"$f":"H58+I58","v":0},{"$f":"(J58*3%)+J58","v":0},{"$f":"(K58*3%)+K58","v":0},{"$f":"(L58*3%)+L58","v":0}]
[null,null,null,null,null,null,null,0,null,0,{"$f":"(J59*3%)+J59","v":0},0,0]
[null,null,null,null,null,null,null,0,null,0,0,0,0]
[null,null,null,null,null,null,null,0,null,0,0,0,0]
[null,null,null,null,null,null,null,0,null,0,0,0,0]
[null,null,null,null,null,null,null,0,null,0,0,0,0]
[null,null,null,null,null,null,null,0,null,0,0,0,0]
[null,null,null,null,null,null,null,0,null,0,0,0,0]
[null,null,null,null,null,null,null,0,null,0,0,0,0]
[null,null,null,null,null,null,null,0,null,0,0,0,0]
[null,null,null,null,null,null,null,0,null,0,0,0,0]
[null,null,null,null,null,null,null,0,null,0,0,0,0]
[null,null,null,null,null,null,null,0,null,0,0,0,0]
[null,null,null,null,null,null,null,0,null,0,0,0,0]
["Actividad 2: COLOQUE NOMBRE DE LA ACTIVIDAD COMO SE ENCUENTRA EN CADENA DE VALOR","MES / AÑO",null,null,null,null,null,0,null,0,{"$f":"(J72*3%)+J72","v":0},{"$f":"(K72*3%)+K72","v":0},{"$f":"(L72*3%)+L72","v":0}]
[null,null,null,null,null,null,null,0,null,0,{"$f":"(J73*3%)+J73","v":0},0,0]
[null,null,null,null,null,null,null,0,null,0,0,0,0]
[null,null,null,null,null,null,null,0,null,0,0,0,0]
[null,null,null,null,null,null,null,0,null,0,0,0,0]
[null,null,null,null,null,null,null,0,null,0,0,0,0]
[null,null,null,null,null,null,null,0,null,0,0,0,0]
[null,null,null,null,null,null,null,0,null,0,0,0,0]
[null,null,null,null,null,null,null,0,null,0,0,0,0]
[null,null,null,null,null,null,null,0,null,0,0,0,0]
[null,null,null,null,null,null,null,0,null,0,0,0,0]
[null,null,null,null,null,null,null,0,null,0,0,0,0]
[null,null,null,null,null,null,null,0,null,0,0,0,0]
[null,null,null,null,null,null,null,0,null,0,0,0,0]
["Actividad N: COLOQUE NOMBRE DE LA ACTIVIDAD COMO SE ENCUENTRA EN CADENA DE VALOR","MES / AÑO",null,null,null,null,null,0,null,0,{"$f":"(J86*3%)+J86","v":0},{"$f":"(K86*3%)+K86","v":0},{"$f":"(L86*3%)+L86","v":0}]
[null,null,null,null,null,null,null,0,null,0,{"$f":"(J87*3%)+J87","v":0},0,0]
[null,null,null,null,null,null,null,0,null,0,0,0,0]
[null,null,null,null,null,null,null,0,null,0,0,0,0]
[null,null,null,null,null,null,null,0,null,0,0,0,0]
[null,null,null,null,null,null,null,0,null,0,0,0,0]
[null,null,null,null,null,null,null,0,null,0,0,0,0]
[null,null,null,null,null,null,null,0,null,0,0,0,0]
[null,null,null,null,null,null,null,0,null,0,0,0,0]
[null,null,null,null,null,null,null,0,null,0,0,0,0]
[null,null,null,null,null,null,null,0,null,0,0,0,0]
[null,null,null,null,null,null,null,0,null,0,0,0,0]
[null,null,null,null,null,null,null,0,null,0,0,0,0]
[null,null,null,null,null,null,null,0,null,0,0,0,0]
[]
["Producto N: COLOQUE EL NOMBRE DEL PRODUCTO COMO SE ENCUENTRA EN CADENA DE VALOR","AÑO","TIPO DE SOLICITUD","DESCRIPCIÓN DETALLADA DE LA SOLICITUD","NÚMERO DE PERSONAS","CANTIDAD","VALOR UNITARIO CON IVA","VALOR TOTAL","INTERMEDIACIÓN OPERADOR ","TOTAL VIGENCIA AÑO:","TOTAL VIGENCIA AÑO:","TOTAL VIGENCIA AÑO:","TOTAL VIGENCIA AÑO:"]
["Actividad 1: COLOQUE NOMBRE DE LA ACTIVIDAD COMO SE ENCUENTRA EN CADENA DE VALOR","MES / AÑO",null,null,null,null,null,{"$f":"+G102*F102","v":0},null,{"$f":"H102+I102","v":0},{"$f":"(J102*3%)+J102","v":0},{"$f":"(K102*3%)+K102","v":0},{"$f":"(L102*3%)+L102","v":0}]
[null,null,null,null,null,null,null,0,null,0,{"$f":"(J103*3%)+J103","v":0},0,0]
[null,null,null,null,null,null,null,0,null,0,0,0,0]
[null,null,null,null,null,null,null,0,null,0,0,0,0]
[null,null,null,null,null,null,null,0,null,0,0,0,0]
[null,null,null,null,null,null,null,0,null,0,0,0,0]
[null,null,null,null,null,null,null,0,null,0,0,0,0]
[null,null,null,null,null,null,null,0,null,0,0,0,0]
[null,null,null,null,null,null,null,0,null,0,0,0,0]
[null,null,null,null,null,null,null,0,null,0,0,0,0]
[null,null,null,null,null,null,null,0,null,0,0,0,0]
[null,null,null,null,null,null,null,0,null,0,0,0,0]
[null,null,null,null,null,null,null,0,null,0,0,0,0]
[null,null,null,null,null,null,null,0,null,0,0,0,0]
["Actividad 2: COLOQUE NOMBRE DE LA ACTIVIDAD COMO SE ENCUENTRA EN CADENA DE VALOR","MES / AÑO",null,null,null,null,null,0,null,0,{"$f":"(J116*3%)+J116","v":0},{"$f":"(K116*3%)+K116","v":0},{"$f":"(L116*3%)+L116","v":0}]
[null,null,null,null,null,null,null,0,null,0,{"$f":"(J117*3%)+J117","v":0},0,0]
[null,null,null,null,null,null,null,0,null,0,0,0,0]
[null,null,null,null,null,null,null,0,null,0,0,0,0]
[null,null,null,null,null,null,null,0,null,0,0,0,0]
[null,null,null,null,null,null,null,0,null,0,0,0,0]
[null,null,null,null,null,null,null,0,null,0,0,0,0]
[null,null,null,null,null,null,null,0,null,0,0,0,0]
[null,null,null,null,null,null,null,0,null,0,0,0,0]
[null,null,null,null,null,null,null,0,null,0,0,0,0]
[null,null,null,null,null,null,null,0,null,0,0,0,0]
[null,null,null,null,null,null,null,0,null,0,0,0,0]
[null,null,null,null,null,null,null,0,null,0,0,0,0]
[null,null,null,null,null,null,null,0,null,0,0,0,0]
["Actividad N: COLOQUE NOMBRE DE LA ACTIVIDAD COMO SE ENCUENTRA EN CADENA DE VALOR","MES / AÑO",null,null,null,null,null,0,null,0,{"$f":"(J130*3%)+J130","v":0},{"$f":"(K130*3%)+K130","v":0},{"$f":"(L130*3%)+L130","v":0}]
[null,null,null,null,null,null,null,0,null,0,{"$f":"(J131*3%)+J131","v":0},0,0]
[null,null,null,null,null,null,null,0,null,0,0,0,0]
[null,null,null,null,null,null,null,0,null,0,0,0,0]
[null,null,null,null,null,null,null,0,null,0,0,0,0]
[null,null,null,null,null,null,null,0,null,0,0,0,0]
[null,null,null,null,null,null,null,0,null,0,0,0,0]
[null,null,null,null,null,null,null,0,null,0,0,0,0]
[null,null,null,null,null,null,null,0,null,0,0,0,0]
[null,null,null,null,null,null,null,0,null,0,0,0,0]
[null,null,null,null,null,null,null,0,null,0,0,0,0]
[null,null,null,null,null,null,null,0,null,0,0,0,0]
[null,null,null,null,null,null,null,0,null,0,0,0,0]
[null,null,null,null,null,null,null,0,null,0,0,0,0]

{"sheet":"Formas de org y rec","index":3,"n_rows":143,"n_cols":13,"rows_kept":143,"cut":false,"hidden":false,"merged":[[0,0,3,2],[0,3,0,10],[0,11,0,12],[1,3,1,10],[1,11,1,12],[2,3,3,10],[2,11,2,12],[3,11,3,12],[5,0,5,2],[5,4,5,5],[5,6,5,8],[5,9,5,12],[6,0,6,2],[6,4,6,5],[6,6,6,8],[8,0,8,12],[10,0,10,12],[13,0,26,0],[13,1,26,1],[27,0,40,0],[27,1,40,1],[41,0,54,0],[41,1,54,1],[57,0,70,0],[57,1,70,1],[71,0,84,0],[71,1,84,1],[129,0,142,0],[129,1,142,1],[85,0,98,0],[85,1,98,1],[101,0,114,0],[101,1,114,1],[115,0,128,0],[115,1,128,1]]}
[null,null,null,"MATRIZ DE COSTOS UNITARIOS",null,null,null,null,null,null,null,"Código: 430,08,15-84"]
[null,null,null,"PROCESO REPARACIÓN INTEGRAL",null,null,null,null,null,null,null,"Versión: 01"]
[null,null,null,"PROCEDIMIENTO DISEÑO, FORMULACIÓN Y APROBACIÓN DEL PLAN INTEGRAL DE REPARACIÓN COLECTIVA PARA SUJETOS NO ÉTNICOS",null,null,null,null,null,null,null,"Fecha: 02/12/2021"]
[null,null,null,null,null,null,null,null,null,null,null,"Pagina: 4 de 7"]
[]
["NOMBRE DEL SUJETO COLECTIVO",null,null,"TIPOLOGÍA","NÚMERO DE ID DEL SRC",null,"DIRECCIÓN TERRITORIAL",null,null,"UBICACIÓN (DEPARTAMENTO - MUNICIPIO)"]
[null,null,null,null,null,null,null,null,null,"DEPARTAMENTO",null,"MUNICIPIO"]
[]
["COSTEO ACTIVIDADES OPERACIÓN LOGÍSTICA ATRIBUTO: FORMAS DE ORGANIZACIÓN Y RECONOCIMIENTO"]
[]
["Para el diligenciamiento de este formato tenga en cuenta las siguientes instrucciones:\n1. Este es un formato de trabajo interno de la Unidad para las Víctimas, por tal razón, lo ideal es que no sea compartido con los SRC. \n2. La información a diligenciar corresponde a las actividades que se van a realizar por operación logística, en este sentido, solamente se deben integrar aquellas que requieran ser costeadas de acuerdo con la información de la cadena de valor del PIRC\n3. En la columna Tipo de solicitud, se debe desagregar si se trata de almuerzos, refrigerios, olla comunitaria, hidratación, materiales, transporte entre otros elementos de carácter general. \n4. En la columna Descripción detallada de la solicitud, debe brindar las características de la solicitud, por ejemplo \"Almuerzo para X personas\" o en Hidratación \"Agua natural en envase de bolsa plástica por 360 ml  y que cuente con Registro Sanitario Invima Paquete x50\". Estas descripciones se encuentran en el tarifario del operador que se encuentra vigente.\n5. En la columna Número de personas, solamente colocarlo para los ítems que aplique, por ejemplo en almuerzos, refrigerios o transporte. En los demás ítems dejar N/A. \n6. En la columna de cantidad, se debe realizar la multiplicación dependiento del número de días de una jornada o de la cantidad de ítems que se necesiten (por ejemplo para una actividad que se desarrolla durante dos días, el número de personas es 10, pero la cantidad va a ser 20, pues se multiplica por los dos días. Para el caso de materiales en número de personas aparece N/A, pero en cantidad puede aparecer 2, porque se requieren dos paquetes de marcadores borrables.\n7. En la columna Valor Unitario con IVA, debe ir el costo del ítem, es decir, el valor de un (1) almuerzo o de un (1) refrigerio\n8. En la columna Valor total se multiplica el valor unitario con IVA por la cantidad. La matriz ya se encuentra formulada para que les dé el total de manera automática\n9. La columna intermediación operador solamente se deberá diligenciar para aquellos ítems que no estén en el tarifario del operador, por ejemplo el transporte. En este sentido, al valor total del ítem se le debe sumar el % de intermediación del operador que esté vigente\n10. La columna J, debe relacionar los costos del año en el que se está haciendo el costeo. De esta manera, si el costeo se está haciendo en año 2021, pero la implementación inicia en 2022, la columna J deberá corresponder a 2021, dado que son los precios de referencia para el costeo. \n11. Incorpore las filas que considere necesarias, de acuerdo con el número de actividades que por operación logística se deben costear para un mismo producto. \n12. Por cada producto que integre acciones de operación logística, se debe diligenciar un cuadro"]
[]
["Producto 1: COLOQUE EL NOMBRE DEL PRODUCTO COMO SE ENCUENTRA EN CADENA DE VALOR","AÑO","TIPO DE SOLICITUD","DESCRIPCIÓN DETALLADA DE LA SOLICITUD","NÚMERO DE PERSONAS","CANTIDAD","VALOR UNITARIO CON IVA","VALOR TOTAL","INTERMEDIACIÓN OPERADOR ","TOTAL VIGENCIA AÑO:","TOTAL VIGENCIA AÑO:","TOTAL VIGENCIA AÑO:","TOTAL VIGENCIA AÑO:"]
["Actividad 1: COLOQUE NOMBRE DE LA ACTIVIDAD COMO SE ENCUENTRA EN CADENA DE VALOR","MES / AÑO",null,null,null,null,null,{"$f":"+G14*F14","v":0},null,{"$f":"H14+I14","v":0},{"$f":"(J14*3%)+J14","v":0},{"$f":"(K14*3%)+K14","v":0},{"$f":"(L14*3%)+L14","v":0}]
[null,null,null,null,null,null,null,0,null,0,{"$f":"(J15*3%)+J15","v":0},0,0]
[null,null,null,null,null,null,null,0,null,0,0,0,0]
[null,null,null,null,null,null,null,0,null,0,0,0,0]
[null,null,null,null,null,null,null,0,null,0,0,0,0]
[null,null,null,null,null,null,null,0,null,0,0,0,0]
[null,null,null,null,null,null,null,0,null,0,0,0,0]
[null,null,null,null,null,null,null,0,null,0,0,0,0]
[null,null,null,null,null,null,null,0,null,0,0,0,0]
[null,null,null,null,null,null,null,0,null,0,0,0,0]
[null,null,null,null,null,null,null,0,null,0,0,0,0]
[null,null,null,null,null,null,null,0,null,0,0,0,0]
[null,null,null,null,null,null,null,0,null,0,0,0,0]
[null,null,null,null,null,null,null,0,null,0,0,0,0]
["Actividad 2: COLOQUE NOMBRE DE LA ACTIVIDAD COMO SE ENCUENTRA EN CADENA DE VALOR","MES / AÑO",null,null,null,null,null,0,null,0,{"$f":"(J28*3%)+J28","v":0},{"$f":"(K28*3%)+K28","v":0},{"$f":"(L28*3%)+L28","v":0}]
[null,null,null,null,null,null,null,0,null,0,{"$f":"(J29*3%)+J29","v":0},0,0]
[null,null,null,null,null,null,null,0,null,0,0,0,0]
[null,null,null,null,null,null,null,0,null,0,0,0,0]
[null,null,null,null,null,null,null,0,null,0,0,0,0]
[null,null,null,null,null,null,null,0,null,0,0,0,0]
[null,null,null,null,null,null,null,0,null,0,0,0,0]
[null,null,null,null,null,null,null,0,null,0,0,0,0]
[null,null,null,null,null,null,null,0,null,0,0,0,0]
[null,null,null,null,null,null,null,0,null,0,0,0,0]
[null,null,null,null,null,null,null,0,null,0,0,0,0]
[null,null,null,null,null,null,null,0,null,0,0,0,0]
[null,null,null,null,null,null,null,0,null,0,0,0,0]
[null,null,null,null,null,null,null,0,null,0,0,0,0]
["Actividad N: COLOQUE NOMBRE DE LA ACTIVIDAD COMO SE ENCUENTRA EN CADENA DE VALOR","MES / AÑO",null,null,null,null,null,0,null,0,{"$f":"(J42*3%)+J42","v":0},{"$f":"(K42*3%)+K42","v":0},{"$f":"(L42*3%)+L42","v":0}]
[null,null,null,null,null,null,null,0,null,0,{"$f":"(J43*3%)+J43","v":0},0,0]
[null,null,null,null,null,null,null,0,null,0,0,0,0]
[null,null,null,null,null,null,null,0,null,0,0,0,0]
[null,null,null,null,null,null,null,0,null,0,0,0,0]
[null,null,null,null,null,null,null,0,null,0,0,0,0]
[null,null,null,null,null,null,null,0,null,0,0,0,0]
[null,null,null,null,null,null,null,0,null,0,0,0,0]
[null,null,null,null,null,null,null,0,null,0,0,0,0]
[null,null,null,null,null,null,null,0,null,0,0,0,0]
[null,null,null,null,null,null,null,0,null,0,0,0,0]
[null,null,null,null,null,null,null,0,null,0,0,0,0]
[null,null,null,null,null,null,null,0,null,0,0,0,0]
[null,null,null,null,null,null,null,0,null,0,0,0,0]
[]
["Producto 2: COLOQUE EL NOMBRE DEL PRODUCTO COMO SE ENCUENTRA EN CADENA DE VALOR","AÑO","TIPO DE SOLICITUD","DESCRIPCIÓN DETALLADA DE LA SOLICITUD","NÚMERO DE PERSONAS","CANTIDAD","VALOR UNITARIO CON IVA","VALOR TOTAL","INTERMEDIACIÓN OPERADOR ","TOTAL VIGENCIA AÑO:","TOTAL VIGENCIA AÑO:","TOTAL VIGENCIA AÑO:","TOTAL VIGENCIA AÑO:"]
["Actividad 1: COLOQUE NOMBRE DE LA ACTIVIDAD COMO SE ENCUENTRA EN CADENA DE VALOR","MES / AÑO",null,null,null,null,null,{"$f":"+G58*F58","v":0},null,{"$f":"H58+I58","v":0},{"$f":"(J58*3%)+J58","v":0},{"$f":"(K58*3%)+K58","v":0},{"$f":"(L58*3%)+L58","v":0}]
[null,null,null,null,null,null,null,0,null,0,{"$f":"(J59*3%)+J59","v":0},0,0]
[null,null,null,null,null,null,null,0,null,0,0,0,0]
[null,null,null,null,null,null,null,0,null,0,0,0,0]
[null,null,null,null,null,null,null,0,null,0,0,0,0]
[null,null,null,null,null,null,null,0,null,0,0,0,0]
[null,null,null,null,null,null,null,0,null,0,0,0,0]
[null,null,null,null,null,null,null,0,null,0,0,0,0]
[null,null,null,null,null,null,null,0,null,0,0,0,0]
[null,null,null,null,null,null,null,0,null,0,0,0,0]
[null,null,null,null,null,null,null,0,null,0,0,0,0]
[null,null,null,null,null,null,null,0,null,0,0,0,0]
[null,null,null,null,null,null,null,0,null,0,0,0,0]
[null,null,null,null,null,null,null,0,null,0,0,0,0]
["Actividad 2: COLOQUE NOMBRE DE LA ACTIVIDAD COMO SE ENCUENTRA EN CADENA DE VALOR","MES / AÑO",null,null,null,null,null,0,null,0,{"$f":"(J72*3%)+J72","v":0},{"$f":"(K72*3%)+K72","v":0},{"$f":"(L72*3%)+L72","v":0}]
[null,null,null,null,null,null,null,0,null,0,{"$f":"(J73*3%)+J73","v":0},0,0]
[null,null,null,null,null,null,null,0,null,0,0,0,0]
[null,null,null,null,null,null,null,0,null,0,0,0,0]
[null,null,null,null,null,null,null,0,null,0,0,0,0]
[null,null,null,null,null,null,null,0,null,0,0,0,0]
[null,null,null,null,null,null,null,0,null,0,0,0,0]
[null,null,null,null,null,null,null,0,null,0,0,0,0]
[null,null,null,null,null,null,null,0,null,0,0,0,0]
[null,null,null,null,null,null,null,0,null,0,0,0,0]
[null,null,null,null,null,null,null,0,null,0,0,0,0]
[null,null,null,null,null,null,null,0,null,0,0,0,0]
[null,null,null,null,null,null,null,0,null,0,0,0,0]
[null,null,null,null,null,null,null,0,null,0,0,0,0]
["Actividad N: COLOQUE NOMBRE DE LA ACTIVIDAD COMO SE ENCUENTRA EN CADENA DE VALOR","MES / AÑO",null,null,null,null,null,0,null,0,{"$f":"(J86*3%)+J86","v":0},{"$f":"(K86*3%)+K86","v":0},{"$f":"(L86*3%)+L86","v":0}]
[null,null,null,null,null,null,null,0,null,0,{"$f":"(J87*3%)+J87","v":0},0,0]
[null,null,null,null,null,null,null,0,null,0,0,0,0]
[null,null,null,null,null,null,null,0,null,0,0,0,0]
[null,null,null,null,null,null,null,0,null,0,0,0,0]
[null,null,null,null,null,null,null,0,null,0,0,0,0]
[null,null,null,null,null,null,null,0,null,0,0,0,0]
[null,null,null,null,null,null,null,0,null,0,0,0,0]
[null,null,null,null,null,null,null,0,null,0,0,0,0]
[null,null,null,null,null,null,null,0,null,0,0,0,0]
[null,null,null,null,null,null,null,0,null,0,0,0,0]
[null,null,null,null,null,null,null,0,null,0,0,0,0]
[null,null,null,null,null,null,null,0,null,0,0,0,0]
[null,null,null,null,null,null,null,0,null,0,0,0,0]
[]
["Producto N: COLOQUE EL NOMBRE DEL PRODUCTO COMO SE ENCUENTRA EN CADENA DE VALOR","AÑO","TIPO DE SOLICITUD","DESCRIPCIÓN DETALLADA DE LA SOLICITUD","NÚMERO DE PERSONAS","CANTIDAD","VALOR UNITARIO CON IVA","VALOR TOTAL","INTERMEDIACIÓN OPERADOR ","TOTAL VIGENCIA AÑO:","TOTAL VIGENCIA AÑO:","TOTAL VIGENCIA AÑO:","TOTAL VIGENCIA AÑO:"]
["Actividad 1: COLOQUE NOMBRE DE LA ACTIVIDAD COMO SE ENCUENTRA EN CADENA DE VALOR","MES / AÑO",null,null,null,null,null,{"$f":"+G102*F102","v":0},null,{"$f":"H102+I102","v":0},{"$f":"(J102*3%)+J102","v":0},{"$f":"(K102*3%)+K102","v":0},{"$f":"(L102*3%)+L102","v":0}]
[null,null,null,null,null,null,null,0,null,0,{"$f":"(J103*3%)+J103","v":0},0,0]
[null,null,null,null,null,null,null,0,null,0,0,0,0]
[null,null,null,null,null,null,null,0,null,0,0,0,0]
[null,null,null,null,null,null,null,0,null,0,0,0,0]
[null,null,null,null,null,null,null,0,null,0,0,0,0]
[null,null,null,null,null,null,null,0,null,0,0,0,0]
[null,null,null,null,null,null,null,0,null,0,0,0,0]
[null,null,null,null,null,null,null,0,null,0,0,0,0]
[null,null,null,null,null,null,null,0,null,0,0,0,0]
[null,null,null,null,null,null,null,0,null,0,0,0,0]
[null,null,null,null,null,null,null,0,null,0,0,0,0]
[null,null,null,null,null,null,null,0,null,0,0,0,0]
[null,null,null,null,null,null,null,0,null,0,0,0,0]
["Actividad 2: COLOQUE NOMBRE DE LA ACTIVIDAD COMO SE ENCUENTRA EN CADENA DE VALOR","MES / AÑO",null,null,null,null,null,0,null,0,{"$f":"(J116*3%)+J116","v":0},{"$f":"(K116*3%)+K116","v":0},{"$f":"(L116*3%)+L116","v":0}]
[null,null,null,null,null,null,null,0,null,0,{"$f":"(J117*3%)+J117","v":0},0,0]
[null,null,null,null,null,null,null,0,null,0,0,0,0]
[null,null,null,null,null,null,null,0,null,0,0,0,0]
[null,null,null,null,null,null,null,0,null,0,0,0,0]
[null,null,null,null,null,null,null,0,null,0,0,0,0]
[null,null,null,null,null,null,null,0,null,0,0,0,0]
[null,null,null,null,null,null,null,0,null,0,0,0,0]
[null,null,null,null,null,null,null,0,null,0,0,0,0]
[null,null,null,null,null,null,null,0,null,0,0,0,0]
[null,null,null,null,null,null,null,0,null,0,0,0,0]
[null,null,null,null,null,null,null,0,null,0,0,0,0]
[null,null,null,null,null,null,null,0,null,0,0,0,0]
[null,null,null,null,null,null,null,0,null,0,0,0,0]
["Actividad N: COLOQUE NOMBRE DE LA ACTIVIDAD COMO SE ENCUENTRA EN CADENA DE VALOR","MES / AÑO",null,null,null,null,null,0,null,0,{"$f":"(J130*3%)+J130","v":0},{"$f":"(K130*3%)+K130","v":0},{"$f":"(L130*3%)+L130","v":0}]
[null,null,null,null,null,null,null,0,null,0,{"$f":"(J131*3%)+J131","v":0},0,0]
[null,null,null,null,null,null,null,0,null,0,0,0,0]
[null,null,null,null,null,null,null,0,null,0,0,0,0]
[null,null,null,null,null,null,null,0,null,0,0,0,0]
[null,null,null,null,null,null,null,0,null,0,0,0,0]
[null,null,null,null,null,null,null,0,null,0,0,0,0]
[null,null,null,null,null,null,null,0,null,0,0,0,0]
[null,null,null,null,null,null,null,0,null,0,0,0,0]
[null,null,null,null,null,null,null,0,null,0,0,0,0]
[null,null,null,null,null,null,null,0,null,0,0,0,0]
[null,null,null,null,null,null,null,0,null,0,0,0,0]
[null,null,null,null,null,null,null,0,null,0,0,0,0]
[null,null,null,null,null,null,null,0,null,0,0,0,0]

{"sheet":"Territorio (exclusivo Com CyB)","index":4,"n_rows":143,"n_cols":13,"rows_kept":143,"cut":false,"hidden":false,"merged":[[0,0,3,2],[0,3,0,10],[0,11,0,12],[1,3,1,10],[1,11,1,12],[2,3,3,10],[2,11,2,12],[3,11,3,12],[5,0,5,2],[5,4,5,5],[5,6,5,8],[5,9,5,12],[6,0,6,2],[6,4,6,5],[6,6,6,8],[8,0,8,12],[10,0,10,12],[13,0,26,0],[13,1,26,1],[27,0,40,0],[27,1,40,1],[41,0,54,0],[41,1,54,1],[57,0,70,0],[57,1,70,1],[71,0,84,0],[71,1,84,1],[129,0,142,0],[129,1,142,1],[85,0,98,0],[85,1,98,1],[101,0,114,0],[101,1,114,1],[115,0,128,0],[115,1,128,1]]}
[null,null,null,"MATRIZ DE COSTOS UNITARIOS",null,null,null,null,null,null,null,"Código: 430,08,15-84"]
[null,null,null,"PROCESO REPARACIÓN INTEGRAL",null,null,null,null,null,null,null,"Versión: 01"]
[null,null,null,"PROCEDIMIENTO DISEÑO, FORMULACIÓN Y APROBACIÓN DEL PLAN INTEGRAL DE REPARACIÓN COLECTIVA PARA SUJETOS NO ÉTNICOS",null,null,null,null,null,null,null,"Fecha: 02/12/2021"]
[null,null,null,null,null,null,null,null,null,null,null,"Pagina: 5 de 7"]
[]
["NOMBRE DEL SUJETO COLECTIVO",null,null,"TIPOLOGÍA","NÚMERO DE ID DEL SRC",null,"DIRECCIÓN TERRITORIAL",null,null,"UBICACIÓN (DEPARTAMENTO - MUNICIPIO)"]
[null,null,null,null,null,null,null,null,null,"DEPARTAMENTO",null,"MUNICIPIO"]
[]
["COSTEO ACTIVIDADES OPERACIÓN LOGÍSTICA ATRIBUTO: TERRITORIO (EXCLUSIVO PARA COMUNIDADES CAMPESINAS Y BARRIALES)"]
[]
["Para el diligenciamiento de este formato tenga en cuenta las siguientes instrucciones:\n1. Este es un formato de trabajo interno de la Unidad para las Víctimas, por tal razón, lo ideal es que no sea compartido con los SRC. \n2. La información a diligenciar corresponde a las actividades que se van a realizar por operación logística, en este sentido, solamente se deben integrar aquellas que requieran ser costeadas de acuerdo con la información de la cadena de valor del PIRC\n3. En la columna Tipo de solicitud, se debe desagregar si se trata de almuerzos, refrigerios, olla comunitaria, hidratación, materiales, transporte entre otros elementos de carácter general. \n4. En la columna Descripción detallada de la solicitud, debe brindar las características de la solicitud, por ejemplo \"Almuerzo para X personas\" o en Hidratación \"Agua natural en envase de bolsa plástica por 360 ml  y que cuente con Registro Sanitario Invima Paquete x50\". Estas descripciones se encuentran en el tarifario del operador que se encuentra vigente.\n5. En la columna Número de personas, solamente colocarlo para los ítems que aplique, por ejemplo en almuerzos, refrigerios o transporte. En los demás ítems dejar N/A. \n6. En la columna de cantidad, se debe realizar la multiplicación dependiento del número de días de una jornada o de la cantidad de ítems que se necesiten (por ejemplo para una actividad que se desarrolla durante dos días, el número de personas es 10, pero la cantidad va a ser 20, pues se multiplica por los dos días. Para el caso de materiales en número de personas aparece N/A, pero en cantidad puede aparecer 2, porque se requieren dos paquetes de marcadores borrables.\n7. En la columna Valor Unitario con IVA, debe ir el costo del ítem, es decir, el valor de un (1) almuerzo o de un (1) refrigerio\n8. En la columna Valor total se multiplica el valor unitario con IVA por la cantidad. La matriz ya se encuentra formulada para que les dé el total de manera automática\n9. La columna intermediación operador solamente se deberá diligenciar para aquellos ítems que no estén en el tarifario del operador, por ejemplo el transporte. En este sentido, al valor total del ítem se le debe sumar el % de intermediación del operador que esté vigente\n10. La columna J, debe relacionar los costos del año en el que se está haciendo el costeo. De esta manera, si el costeo se está haciendo en año 2021, pero la implementación inicia en 2022, la columna J deberá corresponder a 2021, dado que son los precios de referencia para el costeo. \n11. Incorpore las filas que considere necesarias, de acuerdo con el número de actividades que por operación logística se deben costear para un mismo producto. \n12. Por cada producto que integre acciones de operación logística, se debe diligenciar un cuadro"]
[]
["Producto 1: COLOQUE EL NOMBRE DEL PRODUCTO COMO SE ENCUENTRA EN CADENA DE VALOR","AÑO","TIPO DE SOLICITUD","DESCRIPCIÓN DETALLADA DE LA SOLICITUD","NÚMERO DE PERSONAS","CANTIDAD","VALOR UNITARIO CON IVA","VALOR TOTAL","INTERMEDIACIÓN OPERADOR ","TOTAL VIGENCIA AÑO:","TOTAL VIGENCIA AÑO:","TOTAL VIGENCIA AÑO:","TOTAL VIGENCIA AÑO:"]
["Actividad 1: COLOQUE NOMBRE DE LA ACTIVIDAD COMO SE ENCUENTRA EN CADENA DE VALOR","MES / AÑO",null,null,null,null,null,{"$f":"+G14*F14","v":0},null,{"$f":"H14+I14","v":0},{"$f":"(J14*3%)+J14","v":0},{"$f":"(K14*3%)+K14","v":0},{"$f":"(L14*3%)+L14","v":0}]
[null,null,null,null,null,null,null,0,null,0,{"$f":"(J15*3%)+J15","v":0},0,0]
[null,null,null,null,null,null,null,0,null,0,0,0,0]
[null,null,null,null,null,null,null,0,null,0,0,0,0]
[null,null,null,null,null,null,null,0,null,0,0,0,0]
[null,null,null,null,null,null,null,0,null,0,0,0,0]
[null,null,null,null,null,null,null,0,null,0,0,0,0]
[null,null,null,null,null,null,null,0,null,0,0,0,0]
[null,null,null,null,null,null,null,0,null,0,0,0,0]
[null,null,null,null,null,null,null,0,null,0,0,0,0]
[null,null,null,null,null,null,null,0,null,0,0,0,0]
[null,null,null,null,null,null,null,0,null,0,0,0,0]
[null,null,null,null,null,null,null,0,null,0,0,0,0]
[null,null,null,null,null,null,null,0,null,0,0,0,0]
["Actividad 2: COLOQUE NOMBRE DE LA ACTIVIDAD COMO SE ENCUENTRA EN CADENA DE VALOR","MES / AÑO",null,null,null,null,null,0,null,0,{"$f":"(J28*3%)+J28","v":0},{"$f":"(K28*3%)+K28","v":0},{"$f":"(L28*3%)+L28","v":0}]
[null,null,null,null,null,null,null,0,null,0,{"$f":"(J29*3%)+J29","v":0},0,0]
[null,null,null,null,null,null,null,0,null,0,0,0,0]
[null,null,null,null,null,null,null,0,null,0,0,0,0]
[null,null,null,null,null,null,null,0,null,0,0,0,0]
[null,null,null,null,null,null,null,0,null,0,0,0,0]
[null,null,null,null,null,null,null,0,null,0,0,0,0]
[null,null,null,null,null,null,null,0,null,0,0,0,0]
[null,null,null,null,null,null,null,0,null,0,0,0,0]
[null,null,null,null,null,null,null,0,null,0,0,0,0]
[null,null,null,null,null,null,null,0,null,0,0,0,0]
[null,null,null,null,null,null,null,0,null,0,0,0,0]
[null,null,null,null,null,null,null,0,null,0,0,0,0]
[null,null,null,null,null,null,null,0,null,0,0,0,0]
["Actividad N: COLOQUE NOMBRE DE LA ACTIVIDAD COMO SE ENCUENTRA EN CADENA DE VALOR","MES / AÑO",null,null,null,null,null,0,null,0,{"$f":"(J42*3%)+J42","v":0},{"$f":"(K42*3%)+K42","v":0},{"$f":"(L42*3%)+L42","v":0}]
[null,null,null,null,null,null,null,0,null,0,{"$f":"(J43*3%)+J43","v":0},0,0]
[null,null,null,null,null,null,null,0,null,0,0,0,0]
[null,null,null,null,null,null,null,0,null,0,0,0,0]
[null,null,null,null,null,null,null,0,null,0,0,0,0]
[null,null,null,null,null,null,null,0,null,0,0,0,0]
[null,null,null,null,null,null,null,0,null,0,0,0,0]
[null,null,null,null,null,null,null,0,null,0,0,0,0]
[null,null,null,null,null,null,null,0,null,0,0,0,0]
[null,null,null,null,null,null,null,0,null,0,0,0,0]
[null,null,null,null,null,null,null,0,null,0,0,0,0]
[null,null,null,null,null,null,null,0,null,0,0,0,0]
[null,null,null,null,null,null,null,0,null,0,0,0,0]
[null,null,null,null,null,null,null,0,null,0,0,0,0]
[]
["Producto 2: COLOQUE EL NOMBRE DEL PRODUCTO COMO SE ENCUENTRA EN CADENA DE VALOR","AÑO","TIPO DE SOLICITUD","DESCRIPCIÓN DETALLADA DE LA SOLICITUD","NÚMERO DE PERSONAS","CANTIDAD","VALOR UNITARIO CON IVA","VALOR TOTAL","INTERMEDIACIÓN OPERADOR ","TOTAL VIGENCIA AÑO:","TOTAL VIGENCIA AÑO:","TOTAL VIGENCIA AÑO:","TOTAL VIGENCIA AÑO:"]
["Actividad 1: COLOQUE NOMBRE DE LA ACTIVIDAD COMO SE ENCUENTRA EN CADENA DE VALOR","MES / AÑO",null,null,null,null,null,{"$f":"+G58*F58","v":0},null,{"$f":"H58+I58","v":0},{"$f":"(J58*3%)+J58","v":0},{"$f":"(K58*3%)+K58","v":0},{"$f":"(L58*3%)+L58","v":0}]
[null,null,null,null,null,null,null,0,null,0,{"$f":"(J59*3%)+J59","v":0},0,0]
[null,null,null,null,null,null,null,0,null,0,0,0,0]
[null,null,null,null,null,null,null,0,null,0,0,0,0]
[null,null,null,null,null,null,null,0,null,0,0,0,0]
[null,null,null,null,null,null,null,0,null,0,0,0,0]
[null,null,null,null,null,null,null,0,null,0,0,0,0]
[null,null,null,null,null,null,null,0,null,0,0,0,0]
[null,null,null,null,null,null,null,0,null,0,0,0,0]
[null,null,null,null,null,null,null,0,null,0,0,0,0]
[null,null,null,null,null,null,null,0,null,0,0,0,0]
[null,null,null,null,null,null,null,0,null,0,0,0,0]
[null,null,null,null,null,null,null,0,null,0,0,0,0]
[null,null,null,null,null,null,null,0,null,0,0,0,0]
["Actividad 2: COLOQUE NOMBRE DE LA ACTIVIDAD COMO SE ENCUENTRA EN CADENA DE VALOR","MES / AÑO",null,null,null,null,null,0,null,0,{"$f":"(J72*3%)+J72","v":0},{"$f":"(K72*3%)+K72","v":0},{"$f":"(L72*3%)+L72","v":0}]
[null,null,null,null,null,null,null,0,null,0,{"$f":"(J73*3%)+J73","v":0},0,0]
[null,null,null,null,null,null,null,0,null,0,0,0,0]
[null,null,null,null,null,null,null,0,null,0,0,0,0]
[null,null,null,null,null,null,null,0,null,0,0,0,0]
[null,null,null,null,null,null,null,0,null,0,0,0,0]
[null,null,null,null,null,null,null,0,null,0,0,0,0]
[null,null,null,null,null,null,null,0,null,0,0,0,0]
[null,null,null,null,null,null,null,0,null,0,0,0,0]
[null,null,null,null,null,null,null,0,null,0,0,0,0]
[null,null,null,null,null,null,null,0,null,0,0,0,0]
[null,null,null,null,null,null,null,0,null,0,0,0,0]
[null,null,null,null,null,null,null,0,null,0,0,0,0]
[null,null,null,null,null,null,null,0,null,0,0,0,0]
["Actividad N: COLOQUE NOMBRE DE LA ACTIVIDAD COMO SE ENCUENTRA EN CADENA DE VALOR","MES / AÑO",null,null,null,null,null,0,null,0,{"$f":"(J86*3%)+J86","v":0},{"$f":"(K86*3%)+K86","v":0},{"$f":"(L86*3%)+L86","v":0}]
[null,null,null,null,null,null,null,0,null,0,{"$f":"(J87*3%)+J87","v":0},0,0]
[null,null,null,null,null,null,null,0,null,0,0,0,0]
[null,null,null,null,null,null,null,0,null,0,0,0,0]
[null,null,null,null,null,null,null,0,null,0,0,0,0]
[null,null,null,null,null,null,null,0,null,0,0,0,0]
[null,null,null,null,null,null,null,0,null,0,0,0,0]
[null,null,null,null,null,null,null,0,null,0,0,0,0]
[null,null,null,null,null,null,null,0,null,0,0,0,0]
[null,null,null,null,null,null,null,0,null,0,0,0,0]
[null,null,null,null,null,null,null,0,null,0,0,0,0]
[null,null,null,null,null,null,null,0,null,0,0,0,0]
[null,null,null,null,null,null,null,0,null,0,0,0,0]
[null,null,null,null,null,null,null,0,null,0,0,0,0]
[]
["Producto N: COLOQUE EL NOMBRE DEL PRODUCTO COMO SE ENCUENTRA EN CADENA DE VALOR","AÑO","TIPO DE SOLICITUD","DESCRIPCIÓN DETALLADA DE LA SOLICITUD","NÚMERO DE PERSONAS","CANTIDAD","VALOR UNITARIO CON IVA","VALOR TOTAL","INTERMEDIACIÓN OPERADOR ","TOTAL VIGENCIA AÑO:","TOTAL VIGENCIA AÑO:","TOTAL VIGENCIA AÑO:","TOTAL VIGENCIA AÑO:"]
["Actividad 1: COLOQUE NOMBRE DE LA ACTIVIDAD COMO SE ENCUENTRA EN CADENA DE VALOR","MES / AÑO",null,null,null,null,null,{"$f":"+G102*F102","v":0},null,{"$f":"H102+I102","v":0},{"$f":"(J102*3%)+J102","v":0},{"$f":"(K102*3%)+K102","v":0},{"$f":"(L102*3%)+L102","v":0}]
[null,null,null,null,null,null,null,0,null,0,{"$f":"(J103*3%)+J103","v":0},0,0]
[null,null,null,null,null,null,null,0,null,0,0,0,0]
[null,null,null,null,null,null,null,0,null,0,0,0,0]
[null,null,null,null,null,null,null,0,null,0,0,0,0]
[null,null,null,null,null,null,null,0,null,0,0,0,0]
[null,null,null,null,null,null,null,0,null,0,0,0,0]
[null,null,null,null,null,null,null,0,null,0,0,0,0]
[null,null,null,null,null,null,null,0,null,0,0,0,0]
[null,null,null,null,null,null,null,0,null,0,0,0,0]
[null,null,null,null,null,null,null,0,null,0,0,0,0]
[null,null,null,null,null,null,null,0,null,0,0,0,0]
[null,null,null,null,null,null,null,0,null,0,0,0,0]
[null,null,null,null,null,null,null,0,null,0,0,0,0]
["Actividad 2: COLOQUE NOMBRE DE LA ACTIVIDAD COMO SE ENCUENTRA EN CADENA DE VALOR","MES / AÑO",null,null,null,null,null,0,null,0,{"$f":"(J116*3%)+J116","v":0},{"$f":"(K116*3%)+K116","v":0},{"$f":"(L116*3%)+L116","v":0}]
[null,null,null,null,null,null,null,0,null,0,{"$f":"(J117*3%)+J117","v":0},0,0]
[null,null,null,null,null,null,null,0,null,0,0,0,0]
[null,null,null,null,null,null,null,0,null,0,0,0,0]
[null,null,null,null,null,null,null,0,null,0,0,0,0]
[null,null,null,null,null,null,null,0,null,0,0,0,0]
[null,null,null,null,null,null,null,0,null,0,0,0,0]
[null,null,null,null,null,null,null,0,null,0,0,0,0]
[null,null,null,null,null,null,null,0,null,0,0,0,0]
[null,null,null,null,null,null,null,0,null,0,0,0,0]
[null,null,null,null,null,null,null,0,null,0,0,0,0]
[null,null,null,null,null,null,null,0,null,0,0,0,0]
[null,null,null,null,null,null,null,0,null,0,0,0,0]
[null,null,null,null,null,null,null,0,null,0,0,0,0]
["Actividad N: COLOQUE NOMBRE DE LA ACTIVIDAD COMO SE ENCUENTRA EN CADENA DE VALOR","MES / AÑO",null,null,null,null,null,0,null,0,{"$f":"(J130*3%)+J130","v":0},{"$f":"(K130*3%)+K130","v":0},{"$f":"(L130*3%)+L130","v":0}]
[null,null,null,null,null,null,null,0,null,0,{"$f":"(J131*3%)+J131","v":0},0,0]
[null,null,null,null,null,null,null,0,null,0,0,0,0]
[null,null,null,null,null,null,null,0,null,0,0,0,0]
[null,null,null,null,null,null,null,0,null,0,0,0,0]
[null,null,null,null,null,null,null,0,null,0,0,0,0]
[null,null,null,null,null,null,null,0,null,0,0,0,0]
[null,null,null,null,null,null,null,0,null,0,0,0,0]
[null,null,null,null,null,null,null,0,null,0,0,0,0]
[null,null,null,null,null,null,null,0,null,0,0,0,0]
[null,null,null,null,null,null,null,0,null,0,0,0,0]
[null,null,null,null,null,null,null,0,null,0,0,0,0]
[null,null,null,null,null,null,null,0,null,0,0,0,0]
[null,null,null,null,null,null,null,0,null,0,0,0,0]

{"sheet":"Dotaciones","index":5,"n_rows":96,"n_cols":10,"rows_kept":96,"cut":false,"hidden":false,"merged":[[0,2,0,7],[1,2,1,7],[29,0,29,1],[29,2,29,9],[27,0,27,4],[10,0,10,9],[0,0,3,1],[5,0,5,1],[6,0,6,1],[8,0,8,9],[12,2,12,9],[13,2,13,9],[14,2,14,9],[12,0,12,1],[13,0,13,1],[14,0,14,1],[15,0,15,1],[15,2,15,9],[2,2,3,7],[5,4,5,5],[6,4,6,5],[5,6,5,9],[0,8,0,9],[1,8,1,9],[2,8,2,9],[3,8,3,9],[48,0,48,1],[48,2,48,9],[30,0,30,1],[30,2,30,9],[31,0,31,1],[31,2,31,9],[32,0,32,1],[32,2,32,9],[44,0,44,4],[46,0,46,1],[46,2,46,9],[47,0,47,1],[47,2,47,9],[49,2,49,9],[61,0,61,4],[63,0,63,1],[63,2,63,9],[49,0,49,1],[64,0,64,1],[64,2,64,9],[95,0,95,4],[83,0,83,1],[83,2,83,9],[81,0,81,1],[81,2,81,9],[82,0,82,1],[82,2,82,9],[65,0,65,1],[65,2,65,9],[66,0,66,1],[66,2,66,9],[78,0,78,4],[80,0,80,1],[80,2,80,9]]}
[null,null,"MATRIZ DE COSTOS UNITARIOS",null,null,null,null,null,"Código: 430,08,15-84"]
[null,null,"PROCESO REPARACIÓN INTEGRAL",null,null,null,null,null,"Versión: 01"]
[null,null,"PROCEDIMIENTO DISEÑO, FORMULACIÓN Y APROBACIÓN DEL PLAN INTEGRAL DE REPARACIÓN COLECTIVA PARA SUJETOS NO ÉTNICOS",null,null,null,null,null,"Fecha: 02/12/2021"]
[null,null,null,null,null,null,null,null,"Pagina: 6 de 7"]
[]
["NOMBRE DEL SUJETO COLECTIVO",null,"TIPOLOGÍA","NÚMERO DE ID DEL SRC","DIRECCIÓN TERRITORIAL",null,"UBICACIÓN (DEPARTAMENTO - MUNICIPIO)"]
[null,null,null,null,null,null,"DEPARTAMENTO",null,"MUNICIPIO"]
[]
["COSTEO ACTIVIDADES DOTACIÓN"]
[]
["Para el diligenciamiento de este formato tenga en cuenta las siguientes instrucciones:\n1. Este es un formato de trabajo interno de la Unidad para las Víctimas, por tal razón, lo ideal es que no sea compartido con los SRC. \n2. La información a diligenciar corresponde a las actividades que corresponden a la entrega de dotaciones, por ejemplo: mobiliario, equipos tecnológicos, instrumentos musicales, artículos deportivos, herramientas agríocolas, entre otros. En esta hoja no se debe relacionar materiales para la adecuación de infraestructura\n3. La información debe corresponder a los datos que tenga dispuestos el equipo de proyectos de la  Sub. RC para el cálculo de las dotaciones. \n4. en la columna detalle, se deben discriminar las características del artículo a adquirir. Para esto apóyese en el equipo de proyectos de la Sub. RC. \n5. La columna de valor total, sale de multiplicar las cantidades por el valor unitario. En este sentido, corresponde al valor que implicaría la compra de la dotación si se hiciera en el mismo año del costeo del PIRC. Por lo anterior, en el campo fecha programada para la compra, se debe indicar el mes y año propuesto en el PIRC para la compra, con el fin de que se sepa cuál de los valores (año 1, 2 o 3), aplica.\n6. Incorpore las filas que considere necesarias, de acuerdo con el número de ítems requeridos para la dotación. Por cada actividad de dotación se debe relacionar un cuadro. \n7. La columna F, debe relacionar los costos del año en el que se está haciendo el costeo. De esta manera, si el costeo se está haciendo en año 2021, pero la implementación inicia en 2022, la columna F deberá corresponder a 2021, dado que son los precios de referencia para el costeo. "]
[]
["Atributo"]
["Producto ",null,"COLOQUE EL NOMBRE DEL PRODUCTO COMO SE ENCUENTRA EN CADENA DE VALOR"]
["Actividad ",null,"COLOQUE NOMBRE DE LA ACTIVIDAD COMO SE ENCUENTRA EN CADENA DE VALOR"]
["Fecha programada para la compra",null,"MES Y AÑO PROGRAMADO EN EL PIRC"]
["No. Ítem","Artículo","Detalle","Cantidad requerida","Valor unitario","Valor Total año formulación","TOTAL VIGENCIA AÑO:","TOTAL VIGENCIA AÑO:","TOTAL VIGENCIA AÑO:","TOTAL VIGENCIA AÑO:"]
[1,null,null,null,null,{"$f":"(D18*E18)","v":0},{"$f":"F18+(F18*3%)","v":0},{"$f":"G18+(G18*3%)","v":0},{"$f":"H18+(H18*3%)","v":0},{"$f":"I18+(I18*3%)","v":0}]
[2,null,null,null,null,{"$f":"(D19*E19)","v":0},{"$f":"F19+(F19*3%)","v":0},0,0,0]
[3,null,null,null,null,0,{"$f":"F20+(F20*3%)","v":0},0,0,0]
[4,null,null,null,null,0,{"$f":"F21+(F21*3%)","v":0},0,0,0]
[5,null,null,null,null,0,{"$f":"F22+(F22*3%)","v":0},0,0,0]
[6,null,null,null,null,0,{"$f":"F23+(F23*3%)","v":0},0,0,0]
[7,null,null,null,null,0,{"$f":"F24+(F24*3%)","v":0},0,0,0]
[8,null,null,null,null,0,{"$f":"F25+(F25*3%)","v":0},0,0,0]
[9,null,null,null,null,0,{"$f":"F26+(F26*3%)","v":0},0,0,0]
[10,null,null,null,null,0,{"$f":"F27+(F27*3%)","v":0},0,0,0]
["Total",null,null,null,null,{"$f":"SUM(F18:F27)","v":0},{"$f":"SUM(G18:G27)","v":0},{"$f":"SUM(H18:H27)","v":0},{"$f":"SUM(I18:I27)","v":0},{"$f":"SUM(J18:J27)","v":0}]
[]
["Atributo"]
["Producto ",null,"COLOQUE EL NOMBRE DEL PRODUCTO COMO SE ENCUENTRA EN CADENA DE VALOR"]
["Actividad ",null,"COLOQUE NOMBRE DE LA ACTIVIDAD COMO SE ENCUENTRA EN CADENA DE VALOR"]
["Fecha programada para la compra",null,"MES Y AÑO PROGRAMADO EN EL PIRC"]
["No. Ítem","Artículo","Detalle","Cantidad requerida","Valor unitario","Valor Total año formulación","TOTAL VIGENCIA AÑO:","TOTAL VIGENCIA AÑO:","TOTAL VIGENCIA AÑO:","TOTAL VIGENCIA AÑO:"]
[1,null,null,null,null,{"$f":"(D35*E35)","v":0},{"$f":"F35+(F35*3%)","v":0},{"$f":"G35+(G35*3%)","v":0},{"$f":"H35+(H35*3%)","v":0},{"$f":"I35+(I35*3%)","v":0}]
[2,null,null,null,null,{"$f":"(D36*E36)","v":0},{"$f":"F36+(F36*3%)","v":0},{"$f":"G36+(G36*3%)","v":0},{"$f":"H36+(H36*3%)","v":0},{"$f":"I36+(I36*3%)","v":0}]
[3,null,null,null,null,0,0,0,0,0]
[4,null,null,null,null,0,0,0,0,0]
[5,null,null,null,null,0,0,0,0,0]
[6,null,null,null,null,0,0,0,0,0]
[7,null,null,null,null,0,0,0,0,0]
[8,null,null,null,null,0,0,0,0,0]
[9,null,null,null,null,0,0,0,0,0]
[10,null,null,null,null,0,0,0,0,0]
["Total",null,null,null,null,{"$f":"SUM(F35:F44)","v":0},{"$f":"SUM(G35:G44)","v":0},{"$f":"SUM(H35:H44)","v":0},{"$f":"SUM(I35:I44)","v":0},{"$f":"SUM(J35:J44)","v":0}]
[]
["Atributo"]
["Producto ",null,"COLOQUE EL NOMBRE DEL PRODUCTO COMO SE ENCUENTRA EN CADENA DE VALOR"]
["Actividad ",null,"COLOQUE NOMBRE DE LA ACTIVIDAD COMO SE ENCUENTRA EN CADENA DE VALOR"]
["Fecha programada para la compra",null,"MES Y AÑO PROGRAMADO EN EL PIRC"]
["No. Ítem","Artículo","Detalle","Cantidad requerida","Valor unitario","Valor Total año formulación","TOTAL VIGENCIA AÑO:","TOTAL VIGENCIA AÑO:","TOTAL VIGENCIA AÑO:","TOTAL VIGENCIA AÑO:"]
[1,null,null,null,null,{"$f":"(D52*E52)","v":0},{"$f":"F52+(F52*3%)","v":0},{"$f":"G52+(G52*3%)","v":0},{"$f":"H52+(H52*3%)","v":0},{"$f":"I52+(I52*3%)","v":0}]
[2,null,null,null,null,{"$f":"(D53*E53)","v":0},{"$f":"F53+(F53*3%)","v":0},{"$f":"G53+(G53*3%)","v":0},{"$f":"H53+(H53*3%)","v":0},{"$f":"I53+(I53*3%)","v":0}]
[3,null,null,null,null,0,0,0,0,0]
[4,null,null,null,null,0,0,0,0,0]
[5,null,null,null,null,0,0,0,0,0]
[6,null,null,null,null,0,0,0,0,0]
[7,null,null,null,null,0,0,0,0,0]
[8,null,null,null,null,0,0,0,0,0]
[9,null,null,null,null,0,0,0,0,0]
[10,null,null,null,null,0,0,0,0,0]
["Total",null,null,null,null,{"$f":"SUM(F52:F61)","v":0},{"$f":"SUM(G52:G61)","v":0},{"$f":"SUM(H52:H61)","v":0},{"$f":"SUM(I52:I61)","v":0},{"$f":"SUM(J52:J61)","v":0}]
[]
["Atributo"]
["Producto ",null,"COLOQUE EL NOMBRE DEL PRODUCTO COMO SE ENCUENTRA EN CADENA DE VALOR"]
["Actividad ",null,"COLOQUE NOMBRE DE LA ACTIVIDAD COMO SE ENCUENTRA EN CADENA DE VALOR"]
["Fecha programada para la compra",null,"MES Y AÑO PROGRAMADO EN EL PIRC"]
["No. Ítem","Artículo","Detalle","Cantidad requerida","Valor unitario","Valor Total año formulación","TOTAL VIGENCIA AÑO:","TOTAL VIGENCIA AÑO:","TOTAL VIGENCIA AÑO:","TOTAL VIGENCIA AÑO:"]
[1,null,null,null,null,{"$f":"(D69*E69)","v":0},{"$f":"F69+(F69*3%)","v":0},{"$f":"G69+(G69*3%)","v":0},{"$f":"H69+(H69*3%)","v":0},{"$f":"I69+(I69*3%)","v":0}]
[2,null,null,null,null,{"$f":"(D70*E70)","v":0},{"$f":"F70+(F70*3%)","v":0},{"$f":"G70+(G70*3%)","v":0},{"$f":"H70+(H70*3%)","v":0},{"$f":"I70+(I70*3%)","v":0}]
[3,null,null,null,null,0,0,0,0,0]
[4,null,null,null,null,0,0,0,0,0]
[5,null,null,null,null,0,0,0,0,0]
[6,null,null,null,null,0,0,0,0,0]
[7,null,null,null,null,0,0,0,0,0]
[8,null,null,null,null,0,0,0,0,0]
[9,null,null,null,null,0,0,0,0,0]
[10,null,null,null,null,0,0,0,0,0]
["Total",null,null,null,null,{"$f":"SUM(F69:F78)","v":0},{"$f":"SUM(G69:G78)","v":0},{"$f":"SUM(H69:H78)","v":0},{"$f":"SUM(I69:I78)","v":0},{"$f":"SUM(J69:J78)","v":0}]
[]
["Atributo"]
["Producto ",null,"COLOQUE EL NOMBRE DEL PRODUCTO COMO SE ENCUENTRA EN CADENA DE VALOR"]
["Actividad ",null,"COLOQUE NOMBRE DE LA ACTIVIDAD COMO SE ENCUENTRA EN CADENA DE VALOR"]
["Fecha programada para la compra",null,"MES Y AÑO PROGRAMADO EN EL PIRC"]
["No. Ítem","Artículo","Detalle","Cantidad requerida","Valor unitario","Valor Total año formulación","TOTAL VIGENCIA AÑO:","TOTAL VIGENCIA AÑO:","TOTAL VIGENCIA AÑO:","TOTAL VIGENCIA AÑO:"]
[1,null,null,null,null,{"$f":"(D86*E86)","v":0},{"$f":"F86+(F86*3%)","v":0},{"$f":"G86+(G86*3%)","v":0},{"$f":"H86+(H86*3%)","v":0},{"$f":"I86+(I86*3%)","v":0}]
[2,null,null,null,null,{"$f":"(D87*E87)","v":0},{"$f":"F87+(F87*3%)","v":0},{"$f":"G87+(G87*3%)","v":0},{"$f":"H87+(H87*3%)","v":0},{"$f":"I87+(I87*3%)","v":0}]
[3,null,null,null,null,0,0,0,0,0]
[4,null,null,null,null,0,0,0,0,0]
[5,null,null,null,null,0,0,0,0,0]
[6,null,null,null,null,0,0,0,0,0]
[7,null,null,null,null,0,0,0,0,0]
[8,null,null,null,null,0,0,0,0,0]
[9,null,null,null,null,0,0,0,0,0]
[10,null,null,null,null,0,0,0,0,0]
["Total",null,null,null,null,{"$f":"SUM(F86:F95)","v":0},{"$f":"SUM(G86:G95)","v":0},{"$f":"SUM(H86:H95)","v":0},{"$f":"SUM(I86:I95)","v":0},{"$f":"SUM(J86:J95)","v":0}]

{"sheet":"Infraestructura","index":6,"n_rows":87,"n_cols":10,"rows_kept":87,"cut":false,"hidden":false,"merged":[[86,0,86,4],[36,0,36,1],[36,2,36,9],[48,0,48,4],[54,0,54,1],[54,2,54,9],[71,0,71,1],[71,2,71,9],[67,0,67,4],[72,0,72,1],[72,2,72,9],[73,0,73,1],[73,2,73,9],[74,0,74,1],[74,2,74,9],[69,2,69,9],[0,0,3,1],[0,2,0,7],[0,8,0,9],[1,2,1,7],[1,8,1,9],[2,2,3,7],[2,8,2,9],[3,8,3,9],[8,0,8,9],[10,0,10,9],[12,0,12,1],[12,2,12,9],[13,0,13,1],[13,2,13,9],[5,0,5,1],[5,4,5,5],[5,6,5,9],[6,0,6,1],[6,4,6,5],[14,0,14,1],[14,2,14,9],[16,0,16,1],[16,2,16,9],[29,0,29,4],[17,0,17,1],[17,2,17,9],[15,0,15,1],[15,2,15,9],[34,0,34,1],[34,2,34,9],[55,0,55,1],[55,2,55,9],[31,0,31,1],[31,2,31,9],[32,0,32,1],[70,0,70,1],[70,2,70,9],[32,2,32,9],[35,0,35,1],[35,2,35,9],[52,0,52,1],[52,2,52,9],[50,0,50,1],[50,2,50,9],[51,0,51,1],[51,2,51,9],[53,0,53,1],[53,2,53,9],[69,0,69,1],[33,0,33,1],[33,2,33,9]]}
[null,null,"MATRIZ DE COSTOS UNITARIOS",null,null,null,null,null,"Código: 430,08,15-84"]
[null,null,"PROCESO REPARACIÓN INTEGRAL",null,null,null,null,null,"Versión: 01"]
[null,null,"PROCEDIMIENTO DISEÑO, FORMULACIÓN Y APROBACIÓN DEL PLAN INTEGRAL DE REPARACIÓN COLECTIVA PARA SUJETOS NO ÉTNICOS",null,null,null,null,null,"Fecha: 02/12/2021"]
[null,null,null,null,null,null,null,null,"Pagina: 7 de 7"]
[]
["NOMBRE DEL SUJETO COLECTIVO",null,"TIPOLOGÍA","NÚMERO DE ID DEL SRC","DIRECCIÓN TERRITORIAL",null,"UBICACIÓN (DEPARTAMENTO - MUNICIPIO)"]
[null,null,null,null,null,null,"DEPARTAMENTO",null,"MUNICIPIO"]
[]
["COSTEO ACTIVIDADES INFRAESTRUCTURA"]
[]
["Para el diligenciamiento de este formato tenga en cuenta las siguientes instrucciones:\n1. Este es un formato de trabajo interno de la Unidad para las Víctimas, por tal razón, lo ideal es que no sea compartido con los SRC. \n2. La información a diligenciar corresponde a las actividades que corresponden a infraestructura, es decir, la entrega de materiales para la adecuación de casas comunitarias, escuelas, parques y otros espacios físicos de los SRC.\n3. La información debe corresponder a los datos que tenga dispuestos el equipo de proyectos de la  Sub. RC para el cálculo de los materiales que se requieran para la obra. \n4. La columna de valor total, sale de multiplicar las cantidades por el valor unitario. En este sentido, corresponde al valor que implicaría la compra de los materiales para la obra si se hiciera en el mismo año del costeo del PIRC. Por lo anterior, en el campo fecha programada para la compra, se debe indicar el mes y año propuesto en el PIRC para la compra, con el fin de que se sepa cuál de los valores (año 1, 2 o 3), aplica.\n5. El campo lugar en el que se hará la adecuación colocar el nombre siguiendo este ejemplo \"CASA COMUNITARIA DE LA VEREDA PALOSANTO / MUNICIPIO DE YACOPI / CUNDINAMARCA\". Por favor diligenciar uno de estos cuadros por cada lugar que se vaya a adecuar. Así, si son tres casas comunitarias, aun cuando estén relacionadas en un mismo producto y/o actividad, deben estar en cuadros diferentes, pues son tres casas comunitarias distintas. \n6. En el campo Descripción arqutectónica, se debe describir qué es puntualmente lo que se debe hacer, para lo cual se deberá realizar el ejercicio de maner articulada con el Equipo de Proyectos de la Sub. RC.\n7. Incorpore las filas que considere necesarias, de acuerdo con el número de materiales requeridos. "]
[]
["Atributo"]
["Producto ",null,"COLOQUE EL NOMBRE DEL PRODUCTO COMO SE ENCUENTRA EN CADENA DE VALOR"]
["Actividad ",null,"COLOQUE NOMBRE DE LA ACTIVIDAD COMO SE ENCUENTRA EN CADENA DE VALOR"]
["Fecha programada para la compra de los materiales",null,"MES Y AÑO PROGRAMADO EN EL PIRC"]
["Lugar en el que se hará la adecuación",null,"COLOQUE EL NOMBRE DEL LUGAR EN EL QUE SE HARÁ LA OBRA"]
["Descripción arquitectónica",null,"DESCRIBIR EL ALCANCE DE LA OBRA (POR EJEMPLO ADECUACIÓN DE PISOS Y TECHOS DE SALÓN DE X METROS DE ANCHO, POR X METROS DE LARGO, ADECUACIÓN DE PLACA DEPORTIVA CON X DIMENSIONES, INCLUYE ARCOS Y MALLAS)"]
["No. Ítem","Artículo","Unidad de medida","Cantidad requerida","Valor unitario","Valor Total año formulación","TOTAL VIGENCIA AÑO:","TOTAL VIGENCIA AÑO:","TOTAL VIGENCIA AÑO:","TOTAL VIGENCIA AÑO:"]
[1,null,null,null,null,{"$f":"(D20*E20)","v":0},{"$f":"F20+(F20*3%)","v":0},{"$f":"G20+(G20*3%)","v":0},{"$f":"H20+(H20*3%)","v":0},{"$f":"I20+(I20*3%)","v":0}]
[2,null,null,null,null,{"$f":"(D21*E21)","v":0},{"$f":"F21+(F21*3%)","v":0},0,0,0]
[3,null,null,null,null,0,0,0,0,0]
[4,null,null,null,null,0,0,0,0,0]
[5,null,null,null,null,0,0,0,0,0]
[6,null,null,null,null,0,0,0,0,0]
[7,null,null,null,null,0,0,0,0,0]
[8,null,null,null,null,0,0,0,0,0]
[9,null,null,null,null,0,0,0,0,0]
[10,null,null,null,null,0,0,0,0,0]
["Total",null,null,null,null,{"$f":"SUM(F20:F29)","v":0},{"$f":"SUM(G20:G29)","v":0},{"$f":"SUM(H20:H29)","v":0},{"$f":"SUM(I20:I29)","v":0},{"$f":"SUM(J20:J29)","v":0}]
[]
["Atributo"]
["Producto ",null,"COLOQUE EL NOMBRE DEL PRODUCTO COMO SE ENCUENTRA EN CADENA DE VALOR"]
["Actividad ",null,"COLOQUE NOMBRE DE LA ACTIVIDAD COMO SE ENCUENTRA EN CADENA DE VALOR"]
["Fecha programada para la compra de los materiales",null,"MES Y AÑO PROGRAMADO EN EL PIRC"]
["Lugar en el que se hará la adecuación",null,"COLOQUE EL NOMBRE DEL LUGAR EN EL QUE SE HARÁ LA OBRA"]
["Descripción arquitectónica",null,"DESCRIBIR EL ALCANCE DE LA OBRA (POR EJEMPLO ADECUACIÓN DE PISOS Y TECHOS DE SALÓN DE X METROS DE ANCHO, POR X METROS DE LARGO, ADECUACIÓN DE PLACA DEPORTIVA CON X DIMENSIONES, INCLUYE ARCOS Y MALLAS)"]
["No. Ítem","Artículo","Unidad de medida","Cantidad requerida","Valor unitario","Valor Total año formulación","TOTAL VIGENCIA AÑO:","TOTAL VIGENCIA AÑO:","TOTAL VIGENCIA AÑO:","TOTAL VIGENCIA AÑO:"]
[1,null,null,null,null,{"$f":"(D39*E39)","v":0},{"$f":"F39+(F39*3%)","v":0},{"$f":"G39+(G39*3%)","v":0},{"$f":"H39+(H39*3%)","v":0},{"$f":"I39+(I39*3%)","v":0}]
[2,null,null,null,null,{"$f":"(D40*E40)","v":0},{"$f":"F40+(F40*3%)","v":0},{"$f":"G40+(G40*3%)","v":0},{"$f":"H40+(H40*3%)","v":0},{"$f":"I40+(I40*3%)","v":0}]
[3,null,null,null,null,0,0,0,0,0]
[4,null,null,null,null,0,0,0,0,0]
[5,null,null,null,null,0,0,0,0,0]
[6,null,null,null,null,0,0,0,0,0]
[7,null,null,null,null,0,0,0,0,0]
[8,null,null,null,null,0,0,0,0,0]
[9,null,null,null,null,0,0,0,0,0]
[10,null,null,null,null,0,0,0,0,0]
["Total",null,null,null,null,{"$f":"SUM(F39:F48)","v":0},{"$f":"SUM(G39:G48)","v":0},{"$f":"SUM(H39:H48)","v":0},{"$f":"SUM(I39:I48)","v":0},{"$f":"SUM(J39:J48)","v":0}]
[]
["Atributo"]
["Producto ",null,"COLOQUE EL NOMBRE DEL PRODUCTO COMO SE ENCUENTRA EN CADENA DE VALOR"]
["Actividad ",null,"COLOQUE NOMBRE DE LA ACTIVIDAD COMO SE ENCUENTRA EN CADENA DE VALOR"]
["Fecha programada para la compra de los materiales",null,"MES Y AÑO PROGRAMADO EN EL PIRC"]
["Lugar en el que se hará la adecuación",null,"COLOQUE EL NOMBRE DEL LUGAR EN EL QUE SE HARÁ LA OBRA"]
["Descripción arquitectónica",null,"DESCRIBIR EL ALCANCE DE LA OBRA (POR EJEMPLO ADECUACIÓN DE PISOS Y TECHOS DE SALÓN DE X METROS DE ANCHO, POR X METROS DE LARGO, ADECUACIÓN DE PLACA DEPORTIVA CON X DIMENSIONES, INCLUYE ARCOS Y MALLAS)"]
["No. Ítem","Artículo","Unidad de medida","Cantidad requerida","Valor unitario","Valor Total año formulación","TOTAL VIGENCIA AÑO:","TOTAL VIGENCIA AÑO:","TOTAL VIGENCIA AÑO:","TOTAL VIGENCIA AÑO:"]
[1,null,null,null,null,{"$f":"(D58*E58)","v":0},{"$f":"F58+(F58*3%)","v":0},{"$f":"G58+(G58*3%)","v":0},{"$f":"H58+(H58*3%)","v":0},{"$f":"I58+(I58*3%)","v":0}]
[2,null,null,null,null,{"$f":"(D59*E59)","v":0},{"$f":"F59+(F59*3%)","v":0},{"$f":"G59+(G59*3%)","v":0},{"$f":"H59+(H59*3%)","v":0},{"$f":"I59+(I59*3%)","v":0}]
[3,null,null,null,null,0,0,0,0,0]
[4,null,null,null,null,0,0,0,0,0]
[5,null,null,null,null,0,0,0,0,0]
[6,null,null,null,null,0,0,0,0,0]
[7,null,null,null,null,0,0,0,0,0]
[8,null,null,null,null,0,0,0,0,0]
[9,null,null,null,null,0,0,0,0,0]
[10,null,null,null,null,0,0,0,0,0]
["Total",null,null,null,null,{"$f":"SUM(F58:F67)","v":0},{"$f":"SUM(G58:G67)","v":0},{"$f":"SUM(H58:H67)","v":0},{"$f":"SUM(I58:I67)","v":0},{"$f":"SUM(J58:J67)","v":0}]
[]
["Atributo"]
["Producto ",null,"COLOQUE EL NOMBRE DEL PRODUCTO COMO SE ENCUENTRA EN CADENA DE VALOR"]
["Actividad ",null,"COLOQUE NOMBRE DE LA ACTIVIDAD COMO SE ENCUENTRA EN CADENA DE VALOR"]
["Fecha programada para la compra de los materiales",null,"MES Y AÑO PROGRAMADO EN EL PIRC"]
["Lugar en el que se hará la adecuación",null,"COLOQUE EL NOMBRE DEL LUGAR EN EL QUE SE HARÁ LA OBRA"]
["Descripción arquitectónica",null,"DESCRIBIR EL ALCANCE DE LA OBRA (POR EJEMPLO ADECUACIÓN DE PISOS Y TECHOS DE SALÓN DE X METROS DE ANCHO, POR X METROS DE LARGO, ADECUACIÓN DE PLACA DEPORTIVA CON X DIMENSIONES, INCLUYE ARCOS Y MALLAS)"]
["No. Ítem","Artículo","Unidad de medida","Cantidad requerida","Valor unitario","Valor Total año formulación","TOTAL VIGENCIA AÑO:","TOTAL VIGENCIA AÑO:","TOTAL VIGENCIA AÑO:","TOTAL VIGENCIA AÑO:"]
[1,null,null,null,null,{"$f":"(D77*E77)","v":0},{"$f":"F77+(F77*3%)","v":0},{"$f":"G77+(G77*3%)","v":0},{"$f":"H77+(H77*3%)","v":0},{"$f":"I77+(I77*3%)","v":0}]
[2,null,null,null,null,{"$f":"(D78*E78)","v":0},{"$f":"F78+(F78*3%)","v":0},{"$f":"G78+(G78*3%)","v":0},{"$f":"H78+(H78*3%)","v":0},{"$f":"I78+(I78*3%)","v":0}]
[3,null,null,null,null,0,0,0,0,0]
[4,null,null,null,null,0,0,0,0,0]
[5,null,null,null,null,0,0,0,0,0]
[6,null,null,null,null,0,0,0,0,0]
[7,null,null,null,null,0,0,0,0,0]
[8,null,null,null,null,0,0,0,0,0]
[9,null,null,null,null,0,0,0,0,0]
[10,null,null,null,null,0,0,0,0,0]
["Total",null,null,null,null,{"$f":"SUM(F77:F86)","v":0},{"$f":"SUM(G77:G86)","v":0},{"$f":"SUM(H77:H86)","v":0},{"$f":"SUM(I77:I86)","v":0},{"$f":"SUM(J77:J86)","v":0}]

{"sheet":"Control de cambios","index":7,"n_rows":4,"n_cols":3,"rows_kept":4,"cut":false,"hidden":false,"merged":[]}
["Anexo 1 Control de cambios"]
[]
["Versión","Fecha del cambio","Descripción de la modificación"]
["V1","2021-12-02","Creación del instrumento"]

{"sheet":"Hoja8","index":8,"n_rows":5,"n_cols":1,"rows_kept":5,"cut":false,"hidden":true,"merged":[]}
["Prácticas Colectivas"]
["Proyecto Colectivo"]
["Territorio"]
["Formas de organización y relacionamiento"]
["Autorreconocimiento y reconocimiento por terceros"]